Cogmind - Beta 15 @@@ ROGUE MODE // 2025.07.19 @ 19:45:22 Player: Cracklepappy Result: Self-destructed Performance ------------- Evolutions (6) 3000 Regions Visited (32) 6400 Robots Destroyed (479) 2395 Value Destroyed (24265) 24265 Prototype IDs (47) 940 Alien Tech Used (1) 200 Bonus (12280) 12280 TOTAL SCORE: 49480 Bonus ------- High Alert Combat Kills 6884 Follower Combat Kills 4461 Entered Garrisons 1200 Entered DSFs 1000 Acquired ECA 300 Met Zhirov 300 Friendly Fire -1865 Cogmind --------- Core Integrity 719/1150 Matter 106/300 Energy 100/100 System Corruption 19% Temperature Cool (0) Movement Rolling (100) Location -4/Waste Parts ------- > --- POWER (1) -------- (None) > --- PROPULSION (2) --- Compact Wheel > --- UTILITY (8) ------ Experimental Optical Array Advanced Targeting Computer Core Analyzer Graphene Brace (fused) Advanced Hacking Suite > --- WEAPON (8) ------- (None) > --- INVENTORY (5) ---- Advanced Cryofiber Web Encrypted Comm Array Advanced Phase Shifter Transdimensional Reconstructor Improved Plasma Cutter Peak State ------------ > --- POWER ------------ Reinforced Fission Core > --- PROPULSION ------- Wheel Compact Wheel > --- UTILITY ---------- Experimental Heat Sink High-capacity Storage Unit Experimental Optical Array Advanced Targeting Computer Core Analyzer Experimental Utility Shielding Graphene Brace Advanced Hacking Suite > --- WEAPON ----------- Coil Gun Coil Gun Coil Gun KE Penetrator KE Penetrator Railgun Hypervelocity Mass Driver Plasma Lance > --- INVENTORY -------- Heavy Antimatter Reactor Compact Wheel Compact Wheel Advanced Cryofiber Web Experimental Heat Sink Advanced Energy Well Improved Matter Compressor Encrypted Comm Array Core Analyzer Improved Kinecellerator Advanced Weapon Cycler Authchip [Propulsion] Mapping Drone Bay Transdimensional Reconstructor Coil Gun Coil Gun KE Penetrator KE Penetrator Hardcell Cannon Improved Plasma Cutter [Rating: 111] Favorites ----------- Power Cooled Deuterium Engine Engine Cooled Deuterium Engine Power Core Reinforced Fission Core Reactor Heavy Antimatter Reactor Propulsion Armored Wheel Wheel Armored Wheel Utility High-capacity Storage Unit Device Experimental Heat Sink Storage High-capacity Storage Unit Processor Core Analyzer Hackware Advanced Hacking Suite Protection Medium Armor Plating Weapon Hypervelocity Gauss Rifle Energy Gun Subdweller Laser Energy Cannon Advanced Beam Cannon Ballistic Gun Hypervelocity Gauss Rifle Ballistic Cannon Light Cannon Special Weapon Plasma Cutter Impact Weapon Heavy Mace Slashing Weapon Katana Piercing Weapon Plasma Lance Special Melee Weapon Datajack Build | -11 -10 -10 -9 -9 -9 -8 -8 -8 -8 -8 -7 -7 -7 -7 -7 -7 -6 -6 -6 -6 -6 -6 -6 -5 -5 -5 -5 -5 -5 -4 -4 -4 ------- Run | Yrd Mat Min Mat Min Exi Min Mat Gar Mat Gar Fac Was Fac Gar Fac DSF Fac Gar Fac Gar Fac DSF Gar Fac Was Fac Upp Upp Zhi Pro Fac Was Slots Evolved 12 | . . . 2 . . . 2 . . . 2 . . . . . 2 . . . . . . 2 . . . . . . 2 . Power . | . . . . . . . . . . . . . . . . . . . . . . . . . . . . . . . . . Propulsion . | . . . . . . . . . . . . . . . . . . . . . . . . . . . . . . . . . Utility 6 | . . . . . . . 1 . . . 1 . . . . . 1 . . . . . . 1 . . . . . . 2 . Weapon 6 | . . . 2 . . . 1 . . . 1 . . . . . 1 . . . . . . 1 . . . . . . . . Parts Attached 287 | 7 11 3 32 . 1 6 22 13 13 13 4 . 6 19 . 5 9 22 3 28 1 8 11 2 1 9 3 5 4 2 18 6 Power 33 | 1 1 . 8 . . . 3 3 2 . . . . 1 . 1 1 2 1 3 . . 1 . . . . 1 1 1 1 1 Engine 22 | 1 1 . 8 . . . 1 3 2 . . . . 1 . 1 1 . 1 1 . . 1 . . . . . . . . . Core 7 | . . . . . . . 2 . . . . . . . . . . 1 . 2 . . . . . . . . . 1 1 . Reactor 4 | . . . . . . . . . . . . . . . . . . 1 . . . . . . . . . 1 1 . . 1 Propulsion 40 | 2 3 . 4 . . 3 3 2 1 4 . . 1 2 . . 1 . . 3 . . 3 . . 1 . . . 1 5 1 Treads . | . . . . . . . . . . . . . . . . . . . . . . . . . . . . . . . . . Leg . | . . . . . . . . . . . . . . . . . . . . . . . . . . . . . . . . . Wheel 40 | 2 3 . 4 . . 3 3 2 1 4 . . 1 2 . . 1 . . 3 . . 3 . . 1 . . . 1 5 1 Hover . | . . . . . . . . . . . . . . . . . . . . . . . . . . . . . . . . . Flight . | . . . . . . . . . . . . . . . . . . . . . . . . . . . . . . . . . Utility 81 | 2 5 2 6 . 1 2 6 4 2 4 3 . 1 5 . 3 3 3 1 5 1 1 4 1 1 5 2 3 2 . 2 1 Device 42 | 1 2 . 1 . . . 2 4 1 1 3 . 1 2 . 2 2 3 1 3 . 1 2 1 1 4 2 1 . . 1 . Storage 10 | 1 2 . . . 1 . 1 . . . . . . 1 . . . . . 1 1 . 1 . . . . . 1 . . . Processor 9 | . . . . . . . . . . 1 . . . 1 . . 1 . . 1 . . 1 . . 1 . 2 . . . 1 Hackware 5 | . . . . . . . 2 . 1 . . . . . . 1 . . . . . . . . . . . . . . 1 . Protection 15 | . 1 2 5 . . 2 1 . . 2 . . . 1 . . . . . . . . . . . . . . 1 . . . Artifact . | . . . . . . . . . . . . . . . . . . . . . . . . . . . . . . . . . Weapon 133 | 2 2 1 14 . . 1 10 4 8 5 1 . 4 11 . 1 4 17 1 17 . 7 3 1 . 3 1 1 1 . 10 3 Energy Gun 7 | . 1 . 2 . . . 2 . . . . . . . . . . . . . . . . . . . . . 1 . 1 . Energy Cannon 3 | . . . 1 . . . . . . . . . . . . . . . . . . . 1 . . . 1 . . . . . Ballistic Gun 112 | 2 . 1 9 . . 1 8 2 8 4 1 . 4 11 . . 4 17 1 16 . 7 2 1 . 3 . . . . 8 2 Ballistic Cannon 3 | . 1 . . . . . . . . . . . . . . . . . . . . . . . . . . . . . 1 1 Launcher . | . . . . . . . . . . . . . . . . . . . . . . . . . . . . . . . . . Special Weapon 1 | . . . . . . . . 1 . . . . . . . . . . . . . . . . . . . . . . . . Impact Weapon 2 | . . . . . . . . 1 . . . . . . . 1 . . . . . . . . . . . . . . . . Slashing Weapon 3 | . . . 1 . . . . . . 1 . . . . . . . . . . . . . . . . . 1 . . . . Piercing Weapon 1 | . . . . . . . . . . . . . . . . . . . . 1 . . . . . . . . . . . . Special Melee Weapon 1 | . . . 1 . . . . . . . . . . . . . . . . . . . . . . . . . . . . . Unidentified Prototypes 14 | . . . 3 . . . 1 . 1 . . . . . . . . . 1 2 . . 1 . 1 . . . 4 . . . Corrupted Parts 2 | . . . . . . . . . . . . . . . . . . . . . . . . . . . . . . 1 . 1 System Corruption 10 | . . . . . . . . . . . . . . . . . . . . . . . . . . . . . . 6 . 4 Parts Lost 50 | . 2 . 1 . . 4 . . . 1 . . . 7 . 1 . . . 4 . . 1 . . 4 . . . 1 15 9 Power 1 | . . . . . . . . . . . . . . . . . . . . . . . . . . . . . . . . 1 Propulsion 13 | . 1 . 1 . . 1 . . . . . . . 1 . . . . . 1 . . . . . 1 . . . 1 5 1 Utility 11 | . 1 . . . . 2 . . . . . . . 1 . 1 . . . 2 . . . . . . . . . . 1 3 Weapon 25 | . . . . . . 1 . . . 1 . . . 5 . . . . . 1 . . 1 . . 3 . . . . 9 4 Highest Loss Streak 6 | . 1 . 1 . . 2 . . . 1 . . . 5 . 1 . . . 1 . . 1 . . 4 . . . 1 6 5 To Critical Strikes 1 | . . . . . . . . . . . . . . . . . . . . 1 . . . . . . . . . . . . Average Backups 19 | 4 17 19 19 20 18 19 19 19 20 19 19 20 20 19 20 19 19 19 20 19 19 20 19 18 19 19 19 20 19 19 19 18 Power 1 | . 2 2 1 1 1 2 1 1 1 1 1 1 1 1 1 1 1 1 1 1 1 1 1 1 1 1 1 1 1 1 1 1 Propulsion 2 | 1 4 4 3 3 3 3 2 3 3 3 3 3 2 2 3 3 3 3 3 1 2 2 2 2 2 1 2 2 2 1 1 . Utility 7 | . 5 5 5 7 7 6 6 6 5 6 6 7 7 8 8 8 9 9 9 8 7 8 8 8 8 9 10 10 9 9 8 9 Weapon 6 | . 5 7 7 7 5 6 8 8 8 8 7 8 7 7 7 6 4 5 6 7 8 8 7 6 7 6 5 5 4 5 5 3 Tool/Special . | . . . . . . . . . . . . . . . . . . . . . . . . . . . . . . . . . Unused Backups 99 | . 7 5 12 . 1 1 17 1 2 2 1 . 1 3 . 1 1 1 1 2 1 6 4 . 1 7 4 . 3 2 5 7 Power 8 | . . . . . . . 3 . 1 . . . . 1 . . . . 1 . . . . . . . . . . . 2 . Propulsion 9 | . 3 . 3 . . 1 1 . . . . . . 1 . . . . . . . . . . . . . . . . . . Utility 39 | . 1 2 6 . 1 . 3 1 1 2 . . . . . 1 1 1 . . . 2 3 . . 3 1 . 3 1 1 5 Weapon 40 | . 3 3 3 . . . 10 . . . 1 . 1 1 . . . . . 2 . 4 1 . 1 4 3 . . 1 2 . Tool/Special 3 | . . . . . . . . . . . . . . . . . . . . . 1 . . . . . . . . . . 2 Average Slot Usage (%) 98 | . 98 100 99 100 66 99 99 100 100 99 99 100 100 99 100 100 98 93 93 98 100 100 100 99 100 99 100 100 57 100 98 72 Engine 6 | . 14 14 11 11 11 11 6 9 9 9 7 7 7 7 7 7 6 . 2 6 6 6 6 5 5 5 5 4 . . . . Wheel 14 | . 27 28 21 22 22 21 18 18 18 18 15 15 15 14 15 15 11 6 6 11 13 13 13 11 11 11 11 11 11 11 9 8 Device 9 | . 3 . . . . . 11 18 18 9 15 15 17 15 15 15 13 13 13 10 6 6 6 10 11 11 11 11 11 11 11 8 Storage 7 | . 14 14 11 11 11 11 9 9 9 9 7 7 7 7 7 7 6 6 6 6 6 6 6 5 5 5 5 5 5 5 5 4 Processor 9 | . . . . . . . . . . . . . . 6 7 7 12 13 13 14 20 20 20 17 17 17 17 17 17 17 15 15 Protection 2 | . 9 14 10 11 11 10 6 . . 8 7 7 4 . . . . . . . . . . . . . . . . . 4 3 Energy Gun 1 | . 7 14 1 . . . 6 . . . . . . . . . . . . . . . . . . . . . . . 1 . Ballistic Gun 40 | . 10 3 41 44 2 43 38 41 44 42 45 46 45 40 46 43 45 45 46 45 44 46 45 47 46 46 47 47 3 47 37 18 Peak Build Rating 111 | 7 13 12 21 19 20 20 39 39 41 42 49 46 46 52 51 57 70 71 71 69 72 71 80 89 93 95 94 96 97 99 111 97 Average Rating 61 | 5 9 10 17 19 12 19 36 37 39 39 48 46 44 46 51 54 61 64 68 62 70 70 76 88 89 91 92 92 57 97 106 82 On Entrance 54 | . 7 10 12 19 19 20 20 38 38 39 39 46 46 45 51 51 55 70 71 66 69 72 71 78 89 89 92 93 96 97 96 90 Naked Turns . | . . . . . . . . . . . . . . . . . . . . . . . . . . . . . . . . . Heaviest Build 111 | 12 53 56 66 66 67 67 72 71 71 76 82 82 82 83 83 83 81 92 92 87 87 94 94 98 98 98 98 102 102 105 111 91 Greatest Support 32 | 20 20 20 20 20 20 20 24 24 24 24 24 24 24 24 24 24 28 28 28 28 24 24 24 24 24 24 24 24 24 24 32 32 Greatest Overweight (x) 32 | . 2 2 6 3 3 6 3 2 2 3 3 3 3 3 3 3 3 3 3 7 3 3 3 4 32 4 4 4 4 4 9 4 Average Overweight (x) 3 | . 1 2 2 3 2 3 2 2 2 2 3 3 2 2 3 3 2 2 2 2 3 3 3 4 14 3 3 3 2 4 4 2 Largest Inventory Capacity 20 | 8 20 20 20 20 20 20 20 20 20 20 20 20 20 20 20 20 20 20 20 20 20 20 20 20 20 20 20 20 20 20 20 20 Average Capacity 19 | 7 18 20 20 20 20 20 20 20 20 20 20 20 20 20 20 20 20 20 20 20 20 20 20 20 20 20 20 20 20 20 20 19 Most Carried 20 | 8 20 20 20 20 20 20 20 20 20 20 20 20 20 20 20 20 20 20 20 20 20 20 20 19 20 20 20 20 20 20 20 20 Average Carried 19 | 4 17 19 19 20 18 19 19 19 19 19 19 20 19 19 20 19 19 19 19 19 19 19 19 18 19 19 19 19 19 19 19 18 Final Capacity 20 | 8 20 20 20 20 20 20 20 20 20 20 20 20 20 20 20 20 20 20 20 20 20 20 20 20 20 20 20 20 20 20 20 5 Final Carried 20 | 8 20 20 20 20 20 20 19 20 20 20 20 20 20 20 20 20 20 20 20 20 20 20 20 18 20 20 20 20 20 20 19 5 Class Distribution -------------------- 60% | Scavenger-Executioner 13% | Scavenger-Tank 12% | Tank 5% | Scavenger-Mutant 4% | Mutant Dominant Class ---------------- Scavenger-Mutant | -10/Materials Scavenger-Mutant | -10/Mines Scavenger-Tank | -9/Materials Scavenger-Tank | -9/Mines Mutant | -9/Exiles Scavenger-Tank | -8/Mines Tank | -8/Materials Tank | -8/Garrison Tank | -8/Materials Scavenger-Tank | -8/Garrison Scavenger-Executioner | -7/Factory Scavenger-Executioner | -7/Waste Scavenger-Executioner | -7/Factory Scavenger-Executioner | -7/Garrison Scavenger-Executioner | -7/Factory Scavenger-Executioner | -7/DSF Scavenger-Executioner | -6/Factory Scavenger-Executioner | -6/Garrison Scavenger-Executioner | -6/Factory Scavenger-Executioner | -6/Garrison Commander-Executioner | -6/Factory Commander-Executioner | -6/DSF Scavenger-Executioner | -6/Garrison Scavenger-Executioner | -5/Factory Scavenger-Executioner | -5/Waste Scavenger-Executioner | -5/Factory Scavenger-Executioner | -5/Upper Caves Scavenger-Executioner | -5/Upper Caves Scavenger-Mutant | -5/Zhirov Scavenger-Executioner | -4/Proximity Caves Scavenger-Executioner | -4/Factory Scavenger-Gunner | -4/Waste Resources | -11 -10 -10 -9 -9 -9 -8 -8 -8 -8 -8 -7 -7 -7 -7 -7 -7 -6 -6 -6 -6 -6 -6 -6 -5 -5 -5 -5 -5 -5 -4 -4 -4 ----------- Run | Yrd Mat Min Mat Min Exi Min Mat Gar Mat Gar Fac Was Fac Gar Fac DSF Fac Gar Fac Gar Fac DSF Gar Fac Was Fac Upp Upp Zhi Pro Fac Was Matter Collected 24965 | 392 696 44 2201 161 161 324 759 1831 1373 1757 320 . 293 1545 . 229 298 1960 189 1485 . 605 2168 . 163 867 468 860 478 1332 1804 202 Remotely 2708 | 49 221 . . . . . . 46 76 72 . . . 651 . . . 661 . 45 . 86 561 . . 240 . . . . . . Salvage Created 24670 | 144 605 100 1953 179 . 435 700 1481 1344 1286 398 . 443 1928 . 193 310 1886 187 1394 . 191 3312 . 414 787 372 964 279 1372 1794 219 Parts 1301 | 12 30 5 123 7 . 20 50 79 82 85 16 . 32 99 . 13 10 100 4 66 . 13 172 . 18 50 17 46 6 68 75 3 Haulers Intercepted 16 | . 2 . 6 . . . 2 . 3 . . . 1 . . . . . 1 . . 1 . . . . . . . . . . Recyclers Shooed 10 | . 2 . 3 1 . 1 . . 1 . . . . . . . . . 1 . . . . . . . . . . . 1 . Parts Field Recycled . | . . . . . . . . . . . . . . . . . . . . . . . . . . . . . . . . . Retrieved Matter . | . . . . . . . . . . . . . . . . . . . . . . . . . . . . . . . . . Parts Self-Destructed 182 | . . . . . . . . . . . . . . . . . . . . . . . . . . . 24 63 3 92 . . Prevented 4 | . . . . . . . . . . . . . . . . . . . . . . . . . . . 3 1 . . . . Kills | -11 -10 -10 -9 -9 -9 -8 -8 -8 -8 -8 -7 -7 -7 -7 -7 -7 -6 -6 -6 -6 -6 -6 -6 -5 -5 -5 -5 -5 -5 -4 -4 -4 ------- Run | Yrd Mat Min Mat Min Exi Min Mat Gar Mat Gar Fac Was Fac Gar Fac DSF Fac Gar Fac Gar Fac DSF Gar Fac Was Fac Upp Upp Zhi Pro Fac Was Combat Hostiles Destroyed 382 | . 6 2 32 1 . 6 13 28 23 30 3 . 11 36 . 5 3 39 2 25 . 1 45 . . 10 4 16 . 23 17 1 Guns 374 | . 4 2 32 1 . 6 13 28 23 30 3 . 11 36 . 5 3 39 2 25 . 1 45 . . 10 4 16 . 23 11 1 Cannons 5 | . 2 . . . . . . . . . . . . . . . . . . . . . . . . . . . . . 3 . AOE 3 | . . . . . . . . . . . . . . . . . . . . . . . . . . . . . . . 3 . Classes Destroyed 26 | 3 5 1 3 1 . 2 1 1 2 1 . . . . . . . . . 2 . 1 . . . . 1 1 . . . 1 Worker 17 | 2 3 . 5 . . . . . 3 . . . . . . . . . . . . . . . . . . . . . 4 . Builder 3 | . . . . . . 1 1 . . . . . . . . . . . . . . . . . . . . . . . 1 . Tunneler 8 | 4 . . . 1 . 1 1 . . . . . . . . . . . . . . . . . . 1 . . . . . . Hauler 16 | . 2 . 6 . . . 2 . 3 . . . 1 . . . . . 1 . . 1 . . . . . . . . . . Recycler 19 | 1 1 . 4 2 . 2 . . 2 . 2 . . . . . 1 . . . . . . . . . . . . . 4 . Carrier 1 | . . . . . . . . . . . . . . . . . . . . 1 . . . . . . . . . . . . Mechanic 5 | . 1 . . . . . . . . . 2 . . . . . . . . . . . . . . 1 . . . . 1 . Operator 2 | . . . 1 . . . 1 . . . . . . . . . . . . . . . . . . . . . . . . . Drone 2 | . . . . . . . . . . . . . . . . . . . . . . . . . . . . 1 . 1 . . Watcher 14 | . 3 . 5 . . . 1 . 2 1 . . 1 . . . . . . . . . 1 . . . . . . . . . Swarmer 113 | . . . 11 . . . 4 7 5 11 . . 7 15 . 4 . 16 . 10 . . 3 . . . . 6 . 11 3 . Cutter 4 | . . . . . . . . . . 4 . . . . . . . . . . . . . . . . . . . . . . Grunt 115 | . 5 . 10 . . 5 4 11 8 2 1 . 3 12 . 1 3 5 2 5 . . 20 . . 5 3 3 . 4 3 . Brawler 11 | . . . . . . 1 . 2 1 . . . . 2 . . . 2 . . . . 2 . . . . . . 1 . . Duelist 8 | . . . 1 . . . . . . . . . . 2 . . . 1 . . . . 1 . . . . 3 . . . . Protector 3 | . . . . . . . . . 1 . . . . . . . . . . 1 . . . . . . . . . 1 . . Sentry 62 | . . 2 10 . . . 4 5 5 6 1 . 1 4 . . . 7 . 1 . . 9 . . 2 . 1 . 2 2 . Demolisher 4 | . . . . 1 . . . . . . . . . . . . . . . 1 . . 1 . . . . 1 . . . . Specialist 7 | . . . . . . . . . 1 . . . . . . . . 2 . 2 . . . . . . . . . 2 . . Hunter 28 | . . . . . . . 1 1 2 4 . . . . . . . 4 . 1 . . 5 . . . . . . 2 8 . Programmer 23 | . . . . . . . . 2 . 3 1 . . 1 . . . 2 . 4 . . 4 . . 2 . 2 . . 2 . Heavy 2 | . . . . . . . . . . . . . . . . . . . . . . 1 . . . 1 . . . . . . Behemoth 2 | . . . . . . . . . . . . . . . . . . . . . . . . . . . 1 . . 1 . . Compactor 1 | . . . . . . . . . . . . . . . . . . . . . . . . . . . . . . . . 1 Striker 1 | . . . . . . . . . . . . . . . . . . . . 1 . . . . . . . . . . . . Subdweller 1 | . 1 . . . . . . . . . . . . . . . . . . . . . . . . . . . . . . . Surgeon 1 | . . . . . . . . . . . . . . . . . . . . . . . . . . . . . . 1 . . Thug 2 | . . . . . . . . . . . . . . . . . . . . 1 . . . . . . 1 . . . . . Savage 2 | . . . . . . . . . . . . . . . . . . . . . . . 1 . . . . 1 . . . . Martyr 2 | . . . . . . . . . . . . . . . . . . . . . . . . . 2 . . . . . . . Guerrilla 1 | . . . . . . . . . . . . . . . . . . . . 1 . . . . . . . . . . . . Best Kill Streak 10 | 4 3 2 7 1 . 4 4 9 6 8 3 . 5 10 . 4 3 7 3 5 . 1 9 . . 5 3 6 . 6 10 1 Combat Bots Only 10 | . 2 2 4 1 . 3 4 9 4 8 2 . 4 10 . 4 3 7 2 5 . 1 9 . . 4 3 6 . 6 7 1 Max Kills in Single Turn 3 | 1 2 1 2 1 . 1 1 2 2 2 1 . 2 2 . 2 1 2 2 2 . 1 3 . 1 2 1 3 . 3 3 1 Gunslinging 2 | . . . . . . . . 1 1 1 . . . 1 . 1 . 1 . 1 . . 2 . . 1 . 2 . 1 . . Exploded 3 | . . . . . . . . . . . . . . . . . . . . . . . . . . . . . . . 3 . Melee . | . . . . . . . . . . . . . . . . . . . . . . . . . . . . . . . . . Uniques/NPCs Destroyed . | . . . . . . . . . . . . . . . . . . . . . . . . . . . . . . . . . Combat | -11 -10 -10 -9 -9 -9 -8 -8 -8 -8 -8 -7 -7 -7 -7 -7 -7 -6 -6 -6 -6 -6 -6 -6 -5 -5 -5 -5 -5 -5 -4 -4 -4 -------- Run | Yrd Mat Min Mat Min Exi Min Mat Gar Mat Gar Fac Was Fac Gar Fac DSF Fac Gar Fac Gar Fac DSF Gar Fac Was Fac Upp Upp Zhi Pro Fac Was Hostile Shots Fired 1515 | . 31 8 139 5 . 32 39 75 74 75 14 . 49 226 . 26 6 193 5 72 . 4 106 . . 32 22 15 . 43 219 5 Missed 481 | . 4 3 38 . . 6 12 15 19 27 4 . 21 71 . 10 1 71 2 27 . . 40 . . 5 7 5 . 16 76 1 Hits 1034 | . 27 5 101 5 . 26 27 60 55 48 10 . 28 155 . 16 5 122 3 45 . 4 66 . . 27 15 10 . 27 143 4 Melee 12 | . . . 2 . . . . . . 4 . . . 1 . . . . . . . . 1 . . . . . . . . 4 Projectile 1022 | . 27 5 99 5 . 26 27 60 55 44 10 . 28 154 . 16 5 122 3 45 . 4 65 . . 27 15 10 . 27 143 . AOE 12 | . . . . 7 . . . . . . . . . . . . . . . 3 . . 1 . . . . 1 . . . . Critical Strikes 45 | . 1 . 2 . . . 2 4 . 5 . . 3 3 . . . 3 . 1 . . 1 . . 2 2 1 . 3 12 . Actively Blocked 19 | . . . . . . . . . . . . . . . . . . . . . . . . . . 1 2 1 . 3 12 . Part Disruptions 4 | . . . . . . . . 1 . 1 . . . . . . . . . 2 . . . . . . . . . . . . Damage Taken 16749 | . 395 73 1263 221 . 429 308 700 576 767 161 . 353 1693 . 330 96 1549 56 1083 . 227 930 . . 913 394 215 . 743 2560 714 Core 1797 | . 158 12 128 . . 36 5 99 30 44 10 . . 141 . . . 175 . 161 . 41 23 . . 50 123 17 . 113 192 239 Absorbed by Shields 527 | . . . . . . . 52 178 216 48 . . . . . . . 28 . . . . 5 . . . . . . . . . Redirected to Shielding 115 | . . 2 . . . . . . . . . . . . . . . . . . . . . . . . . . . . 85 28 Regen/Repaired (Parts) 1930 | . . . 379 . . . 65 . 178 . . . . . . . . . . . . . . 47 11 330 218 104 . 340 258 . Core Remaining (%) 65 | 100 . 32 . . . 59 . . . 67 . . . . . 78 . . . . . . 52 . . . . . . 69 . . Volleys Fired 1097 | 26 54 6 104 12 . 21 33 121 59 108 10 . 16 153 . 11 6 66 6 67 1 5 75 . 2 19 11 19 . 33 35 18 Largest 8 | 2 2 2 4 4 . 4 5 5 5 5 6 . 6 6 . 6 7 7 7 7 7 7 7 . 8 8 8 8 . 8 8 4 Hottest 326 | 40 90 90 125 92 . 99 153 126 128 129 150 . 150 161 . 161 184 202 197 200 210 231 231 . 264 264 258 258 . 258 326 151 Shots Fired 4560 | 52 107 12 416 48 . 81 164 337 295 340 60 . 95 419 . 61 42 360 36 262 8 35 370 . 16 146 87 150 . 261 272 28 Gun 4276 | 52 90 6 416 48 . 81 164 275 295 303 60 . 95 326 . 61 42 354 36 249 8 35 347 . 16 146 87 150 . 261 262 11 Cannon 50 | . 17 6 . . . . . . . . . . . . . . . . . . . . . . . . . . . . 10 17 Launcher . | . . . . . . . . . . . . . . . . . . . . . . . . . . . . . . . . . Special 234 | . . . . . . . . 62 . 37 . . . 93 . . . 6 . 13 . . 23 . . . . . . . . . Kinetic 4274 | 52 97 6 399 48 . 81 150 275 295 303 60 . 95 326 . 61 42 354 36 249 8 35 347 . 16 146 87 150 . 261 267 28 Thermal 286 | . 10 6 17 . . . 14 62 . 37 . . . 93 . . . 6 . 13 . . 23 . . . . . . . 5 . Explosive . | . . . . . . . . . . . . . . . . . . . . . . . . . . . . . . . . . Electromagnetic . | . . . . . . . . . . . . . . . . . . . . . . . . . . . . . . . . . Robot Hit Streak 41 | 6 8 3 11 5 . 8 9 41 8 33 7 . 6 32 . 3 8 13 3 12 1 4 27 . 8 10 7 6 . 13 13 6 Robot Miss Streak 21 | 3 3 2 7 6 . 4 4 5 6 8 3 . 8 9 . 5 2 6 21 15 4 6 8 . 1 5 3 5 . 6 8 1 Penetration Max 2 | . . . . . . . . 1 1 1 1 . 1 1 . . . 1 . 1 . . 2 . . 2 1 1 . 1 1 . Secondary Targets 109 | . . . 3 . . 2 2 8 7 14 . . 2 16 . 3 1 13 1 7 . . 11 . . 2 . 7 . 4 6 . Max Gunslinging Chain 2 | . . . 1 . . 1 1 1 1 1 . . 1 2 . 1 1 2 1 1 . . 2 . . 1 . 2 . 1 1 . Shots Hit Robots 2347 | 35 65 6 209 22 7 48 83 210 134 157 27 . 40 254 . 22 26 173 17 147 2 22 200 . 15 56 47 72 8 108 123 12 Core Hits 1183 | 9 29 3 79 7 . 21 31 80 62 69 16 . 21 132 . 10 11 109 14 128 1 9 117 . 4 32 18 42 5 57 63 4 Critical Kills 83 | . 1 . . . . . . . 1 3 . . . . . . . 2 . 2 . 1 43 . . 9 . 7 . 6 8 . Critical Parts Destroyed 94 | . 2 . 3 . . . 1 2 1 2 1 . . . . 1 . 1 . 2 . . 40 . 1 3 6 9 . 9 10 . Critical Strikes 207 | . 3 . 3 . . . 1 7 2 9 1 . . 6 . 1 . 4 . 4 . 1 88 . 7 12 7 16 1 15 19 . Burn 1 | . . . . . . . . . . . . . . . . . . . . . . . . . . . . . . . 1 . Destroy 188 | . 3 . 3 . . . 1 2 2 5 1 . . 1 . 1 . 3 . 4 . 1 86 . 7 12 7 16 . 15 18 . Sever 17 | . . . . . . . . 5 . 4 . . . 5 . . . 1 . . . . 2 . . . . . . . . . Impale 1 | . . . . . . . . . . . . . . . . . . . . . . . . . . . . . 1 . . . Melee Attacks 138 | . . . 2 . 8 . . 21 4 22 2 . 2 39 . 4 . 5 . 2 8 . 4 . 2 2 . . 8 1 2 . Impact 101 | . . . . . . . . 21 4 22 2 . 2 39 . 4 . 5 . 2 . . . . . . . . . . . . Slashing 1 | . . . 1 . . . . . . . . . . . . . . . . . . . . . . . . . . . . . Piercing 27 | . . . . . . . . . . . . . . . . . . . . . 8 . 4 . 2 2 . . 8 1 2 . Sneak Attacks 11 | . . . 1 . 7 . . . . . 1 . . . . . . . . . . . . . 2 . . . . . . . Combat Hostiles . | . . . . . . . . . . . . . . . . . . . . . . . . . . . . . . . . . Follow-up Attacks . | . . . . . . . . . . . . . . . . . . . . . . . . . . . . . . . . . Damage Inflicted 40489 | 368 827 152 3125 329 . 765 1336 3222 2720 2653 573 . 714 3762 . 535 445 3328 274 2857 45 315 1744 . 333 1008 1063 1252 728 2354 3203 459 Guns 36184 | 368 698 79 3125 329 . 763 1336 2540 2706 2245 495 . 714 2767 . 535 445 3272 274 2738 45 315 1493 . 173 1008 1063 1252 . 2354 2767 285 Cannons 528 | . 129 73 . . . . . . . . . . . . . . . . . . . . . . . . . . . . 152 174 Explosions 284 | . . . . . . . . . . . . . . . . . . . . . . . . . . . . . . . 284 . Melee 966 | . . . . . . . . . . . 78 . . . . . . . . . . . . . 160 . . . 728 . . . Ramming 16 | . . . . . . 2 . . 14 . . . . . . . . . . . . . . . . . . . . . . . Kinetic 36212 | 368 724 73 3023 329 . 763 1194 2540 2706 2245 495 . 714 2767 . 535 445 3272 274 2738 45 315 1493 . 173 1008 1063 1252 . 2354 2845 459 Thermal 3011 | . 103 79 102 . . . 142 682 . 408 . . . 995 . . . 56 . 119 . . 251 . . . . . . . 74 . Explosive 284 | . . . . . . . . . . . . . . . . . . . . . . . . . . . . . . . 284 . Electromagnetic . | . . . . . . . . . . . . . . . . . . . . . . . . . . . . . . . . . Impact 78 | . . . . . . . . . . . 78 . . . . . . . . . . . . . . . . . . . . . Slashing . | . . . . . . . . . . . . . . . . . . . . . . . . . . . . . . . . . Piercing 888 | . . . . . . . . . . . . . . . . . . . . . . . . . 160 . . . 728 . . . Highest Corruption 19 | . . . 3 3 3 3 . . . 2 . 8 8 8 8 8 . 2 2 3 3 3 3 . . 1 1 2 2 8 1 19 Average Corruption 2 | . . . 1 3 3 3 . . . 1 . 8 8 8 8 8 . 1 2 2 3 3 3 . . 1 1 1 2 2 1 5 Corruption Purged . | . . . . . . . . . . . . . . . . . . . . . . . . . . . . . . . . . Corruption Blocked . | . . . . . . . . . . . . . . . . . . . . . . . . . . . . . . . . . Effects 354 | . . . 16 5 11 15 . . . 19 . 3 10 66 1 8 . 21 2 38 7 4 34 . . 3 19 23 4 37 3 5 Message Errors 88 | . . . 4 1 5 4 . . . 3 . 1 2 18 . 2 . 2 1 8 1 1 8 . . . 3 8 2 11 1 2 Matter Fused 85 | . . . 2 1 5 3 . . . 7 . 1 1 14 1 . . 7 . 10 1 1 8 . . . 3 5 1 11 1 2 Heat Flow Errors 34 | . . . 3 2 . 2 . . . 2 . . 1 8 . 1 . 3 1 5 . . 2 . . . 1 1 . 2 . . Energy Discharges 42 | . . . 3 . . 3 . . . 2 . . 3 5 . 1 . 1 . 3 2 1 6 . . . 6 1 1 3 1 . Parts Rejected 2 | . . . . . . . . . . 1 . . . . . . . . . . . . 1 . . . . . . . . . Parts Fused 3 | . . . . . . . . . . . . . . . . . . . . . 1 . 1 . . 1 . . . . . . Data Loss (minor) 47 | . . . 1 1 . 2 . . . 3 . 1 2 8 . 3 . 5 . 6 1 1 2 . . 1 4 2 . 3 . 1 Data Loss (major) 16 | . . . 1 . 1 . . . . . . . . 3 . 1 . 1 . 3 . . . . . . 1 2 . 3 . . Misfires 14 | . . . 1 . . 1 . . . 1 . . . 2 . . . 1 . 1 1 . 3 . . . . 1 . 2 . . Alerts 6 | . . . . . . . . . . . . . . 2 . . . . . 1 . . 1 . . . . . . 2 . . Weapon Failures 17 | . . . 1 . . . . . . . . . 1 6 . . . 1 . 1 . . 2 . . 1 1 3 . . . . Overload Shots . | . . . . . . . . . . . . . . . . . . . . . . . . . . . . . . . . . Overflow Damage 151 | . . . . . . . . 7 . . 53 . . . . . . . . . . . . . . . . . 63 . 28 . Projectiles 30 | . . . . . . . . 7 . . . . . . . . . . . . . . . . . . . . . . 23 . Explosions 5 | . . . . . . . . . . . . . . . . . . . . . . . . . . . . . . . 5 . Melee 116 | . . . . . . . . . . . 53 . . . . . . . . . . . . . . . . . 63 . . . Knockbacks 2 | . . . . . . . . . 1 . 1 . . . . . . . . . . . . . . . . . . . . . Impact 2 | . . . . . . . . . 1 . 1 . . . . . . . . . . . . . . . . . . . . . Kinetic . | . . . . . . . . . . . . . . . . . . . . . . . . . . . . . . . . . Secondary . | . . . . . . . . . . . . . . . . . . . . . . . . . . . . . . . . . Self-Inflicted Damage 8 | . . . . . . 1 . . 7 . . . . . . . . . . . . . . . . . . . . . . . Shots . | . . . . . . . . . . . . . . . . . . . . . . . . . . . . . . . . . Rammed 2 | . . . . . . 1 . . 1 . . . . . . . . . . . . . . . . . . . . . . . Targets Rammed 2 | . . . . . . 1 . . 1 . . . . . . . . . . . . . . . . . . . . . . . Kicked . | . . . . . . . . . . . . . . . . . . . . . . . . . . . . . . . . . Crushed . | . . . . . . . . . . . . . . . . . . . . . . . . . . . . . . . . . Highest Temperature 421 | . 120 177 345 421 . 295 128 293 275 302 48 . 84 258 . 250 341 250 228 371 51 56 132 . 24 42 224 128 . 102 371 108 Average Temperature 73 | . 34 84 84 141 . 134 45 75 83 91 15 . 26 76 . 135 138 81 111 50 34 31 28 . 13 9 27 8 . 32 98 58 Received Heat Transfer 3113 | . 228 27 396 . . 234 125 248 229 90 45 . 93 360 . . 45 231 27 54 . . 273 . . 90 57 9 . 63 189 . Effects 8 | . . . . 2 . 1 . . . . . . . . . . . . . . . . . . . . . . . . 5 . Shutdowns 1 | . . . . 1 . . . . . . . . . . . . . . . . . . . . . . . . . . . . Energy Bleed 4 | . . . . 1 . 1 . . . . . . . . . . . . . . . . . . . . . . . . 2 . Interference 3 | . . . . . . . . . . . . . . . . . . . . . . . . . . . . . . . 3 . Siege Activations . | . . . . . . . . . . . . . . . . . . . . . . . . . . . . . . . . . Martial Activations . | . . . . . . . . . . . . . . . . . . . . . . . . . . . . . . . . . Shielding Activations . | . . . . . . . . . . . . . . . . . . . . . . . . . . . . . . . . . Robots Disrupted . | . . . . . . . . . . . . . . . . . . . . . . . . . . . . . . . . . Combat Hostiles . | . . . . . . . . . . . . . . . . . . . . . . . . . . . . . . . . . Robots Corrupted 1 | . . . . . . . . . . . 1 . . . . . . . . . . . . . . . . . . . . . Combat Hostiles . | . . . . . . . . . . . . . . . . . . . . . . . . . . . . . . . . . Parts Fried . | . . . . . . . . . . . . . . . . . . . . . . . . . . . . . . . . . Impact Corruptions 2 | . . . . . . . . . . . 2 . . . . . . . . . . . . . . . . . . . . . Robots Melted . | . . . . . . . . . . . . . . . . . . . . . . . . . . . . . . . . . Combat Hostiles . | . . . . . . . . . . . . . . . . . . . . . . . . . . . . . . . . . Parts Melted 7 | . 1 . . . . . . 1 . . . . . 1 . . . . . . . . 1 . . . 2 . . 1 . . Heat Transferred 9401 | . 125 100 259 . . . 259 2294 . 1369 . . . 3367 . . . 185 . 407 . . 851 . . . . . . . 185 . Parts Sabotaged . | . . . . . . . . . . . . . . . . . . . . . . . . . . . . . . . . . Parts Stolen . | . . . . . . . . . . . . . . . . . . . . . . . . . . . . . . . . . Parts Stripped . | . . . . . . . . . . . . . . . . . . . . . . . . . . . . . . . . . Power Chain Reactions . | . . . . . . . . . . . . . . . . . . . . . . . . . . . . . . . . . Alert | -11 -10 -10 -9 -9 -9 -8 -8 -8 -8 -8 -7 -7 -7 -7 -7 -7 -6 -6 -6 -6 -6 -6 -6 -5 -5 -5 -5 -5 -5 -4 -4 -4 ------- Run | Yrd Mat Min Mat Min Exi Min Mat Gar Mat Gar Fac Was Fac Gar Fac DSF Fac Gar Fac Gar Fac DSF Gar Fac Was Fac Upp Upp Zhi Pro Fac Was Maximum Alert Level 5 | . . . 1 . . . . 4 4 5 4 2 2 5 3 3 2 5 3 5 4 4 5 4 2 3 . . . . 3 1 Low Security (%) 41 | 100 100 100 53 100 . 100 100 5 . . . . . . . . . . . . . . . . 86 31 . . . . . 63 Level 1 10 | . . . 46 . . . . 21 . . . 25 95 7 . . 81 11 . . . . . . 8 4 . . . . . 36 Level 2 6 | . . . . . . . . 22 24 . . 74 4 10 . 59 18 6 . 4 . . . . 5 23 . . . . 15 . Level 3 16 | . . . . . . . . 31 69 10 . . . 39 100 40 . 22 100 17 . 51 5 . . 40 . . . . 84 . Level 4 13 | . . . . . . . . 19 6 19 100 . . 37 . . . 55 . 17 100 48 31 100 . . . . . . . . Level 5 11 | . . . . . . . . . . 70 . . . 5 . . . 5 . 60 . . 63 . . . . . . . . . High Security . | . . . . . . . . . . . . . . . . . . . . . . . . . . . . . . . . . Max Security . | . . . . . . . . . . . . . . . . . . . . . . . . . . . . . . . . . Sterilizations 2 | . . . . . . . . . . . . . . . . 1 . . . . . 1 . . . . . . . . . . Peak Influence 3034 | 10 55 32 359 78 . 45 146 1470 1174 2728 1432 479 409 1648 865 755 425 1659 907 2924 1535 1278 3034 1592 546 841 . . . . 818 246 Initial 1592 | . . . . 73 . . . 89 716 707 1432 479 272 282 865 605 396 234 870 609 1535 968 958 1592 546 . . . . . 633 246 Average 678 | 2 5 2 166 23 . 6 22 746 859 1945 1374 430 308 1037 865 687 379 1119 866 1862 1459 1139 2142 1576 61 481 . . . . 744 161 Influence Increases 20084 | 35 258 40 1086 35 . 161 457 1381 1260 2051 144 . 291 1456 . 220 99 1425 111 2395 8 330 2266 . . 1363 371 812 21 1041 963 4 Destroy 0b10 Robot/C 10080 | . 100 40 640 20 . 120 260 720 700 940 80 . 220 740 . 180 60 800 40 900 . 180 1200 . . 460 200 460 . 680 340 . Destroy 0b10 Robot/NC 570 | 35 50 . 105 15 . 20 30 15 65 20 20 . 10 25 . 5 5 5 10 10 . 5 25 . . 10 . 5 15 15 50 . Destroy Leader 1320 | . 40 . 202 . . 20 76 40 214 50 30 . 44 50 . 20 10 50 4 70 . 20 80 . . 120 10 40 . 50 80 . Allied During Kill 3260 | . . . . . . . . 51 175 178 11 . . 7 . 12 . 31 42 861 . 110 432 . . 588 161 292 6 266 37 . Successful Hack 482 | . 37 . 112 . . . 74 30 38 16 . . 14 14 . . 24 14 14 7 . . 44 . . 44 . . . . . . Disable Machine 450 | . 30 . . . . . 15 75 30 15 . . . 45 . . . 30 . 45 . 15 15 . . 45 . . . . 90 . Anti-Garrison Action 2950 | . . . . . . . . 400 . 750 . . . 400 . . . 450 . 500 . . 450 . . . . . . . . . Destroy Structure 477 | . 1 . 12 . . 1 2 50 23 67 3 . 3 100 . 3 . 15 1 2 8 . 20 . . 96 . . . . 66 4 Advance Influence 300 | . . . . . . . . . . . . . . . . . . . . . . . . . . . . . . . 300 . Lose Combat Pursuer 195 | . . . 15 . . . . . 15 15 . . . 75 . . . 30 . . . . . . . . . 15 . 30 . . Influence Decreases 20054 | 35 258 40 897 224 . 161 319 49 1642 411 1502 981 277 211 783 330 519 101 899 342 1549 435 510 1472 1562 552 1053 666 296 510 790 678 Entered New Map 12118 | . . . . 116 . . . 49 754 381 1296 891 117 121 783 260 359 101 789 262 1389 415 320 1442 1016 . 301 25 275 . 198 458 Time Decay 6141 | 35 258 40 587 108 . 121 314 . 568 . 206 50 160 . . . 160 . 110 . 160 . . 30 546 352 692 601 21 470 422 130 Lost Part 470 | . . . 10 . . 40 . . . 10 . . . 70 . 10 . . . 40 . . 10 . . 40 . . . . 150 90 Lost Ally 720 | . . . . . . . . . 20 20 . 40 . 20 . 60 . . . 40 . 20 180 . . 160 60 40 . 40 20 . Purge Threat 605 | . . . 300 . . . 5 . 300 . . . . . . . . . . . . . . . . . . . . . . . Squads Dispatched 45 | . 1 . 3 . . . 3 . 8 . 3 . 3 . 1 1 1 . . . 1 1 . 1 . 5 . 1 . 1 11 . Investigation 18 | . . . 3 . . . 1 . 4 . . . 1 . 1 . 1 . . . . . . 1 . 1 . . . . 5 . Extermination 5 | . . . . . . . . . . . 1 . . . . . . . . . . . . . . 2 . . . . 2 . Reinforcement 11 | . 1 . . . . . 1 . 2 . 1 . 1 . . 1 . . . . 1 1 . . . 2 . . . . . . Assault 6 | . . . . . . . . . 2 . 1 . . . . . . . . . . . . . . . . 1 . 1 1 . Garrison 5 | . . . . . . . 1 . . . . . 1 . . . . . . . . . . . . . . . . . 3 . Intercept . | . . . . . . . . . . . . . . . . . . . . . . . . . . . . . . . . . Searches Triggered . | . . . . . . . . . . . . . . . . . . . . . . . . . . . . . . . . . Construction Impeded 1 | . . . . . . . . . . . . . . . . . . . . . . . . . . 1 . . . . . . Haulers Reinforced . | . . . . . . . . . . . . . . . . . . . . . . . . . . . . . . . . . Active Scanning Responses . | . . . . . . . . . . . . . . . . . . . . . . . . . . . . . . . . . Cargo Convoy Interrupts . | . . . . . . . . . . . . . . . . . . . . . . . . . . . . . . . . . Stealth | -11 -10 -10 -9 -9 -9 -8 -8 -8 -8 -8 -7 -7 -7 -7 -7 -7 -6 -6 -6 -6 -6 -6 -6 -5 -5 -5 -5 -5 -5 -4 -4 -4 --------- Run | Yrd Mat Min Mat Min Exi Min Mat Gar Mat Gar Fac Was Fac Gar Fac DSF Fac Gar Fac Gar Fac DSF Gar Fac Was Fac Upp Upp Zhi Pro Fac Was Distress Signals 8 | . 1 . 3 . . . 2 . 2 . . . . . . . . . . . . . . . . . . . . . . . Communications Jammed . | . . . . . . . . . . . . . . . . . . . . . . . . . . . . . . . . . Distress Signals . | . . . . . . . . . . . . . . . . . . . . . . . . . . . . . . . . . Times Spotted 533 | . 13 2 41 2 . 6 15 33 41 46 6 6 15 41 . 8 3 38 3 38 1 2 51 . . 15 7 25 . 41 26 8 Peak Tracking Total 11 | . 3 2 6 2 . 3 4 6 5 6 2 6 5 7 . 4 2 9 2 7 . 1 11 . . 4 5 7 . 9 5 6 Tactical Retreats 10 | . . . 1 . . . . . 1 1 . . . 2 . . . 1 . . . . . . . . . 1 . 1 . 2 Traps | -11 -10 -10 -9 -9 -9 -8 -8 -8 -8 -8 -7 -7 -7 -7 -7 -7 -6 -6 -6 -6 -6 -6 -6 -5 -5 -5 -5 -5 -5 -4 -4 -4 ------- Run | Yrd Mat Min Mat Min Exi Min Mat Gar Mat Gar Fac Was Fac Gar Fac DSF Fac Gar Fac Gar Fac DSF Gar Fac Was Fac Upp Upp Zhi Pro Fac Was Traps Triggered 62 | . 2 . 8 . . . . 6 1 9 2 . . 7 . 1 . 9 . 8 . . 7 1 . . . . . . 1 . Indirectly . | . . . . . . . . . . . . . . . . . . . . . . . . . . . . . . . . . Trap Hack Attempts 15 | . . . 15 . . . . . . . . . . . . . . . . . . . . . . . . . . . . . Triggered . | . . . . . . . . . . . . . . . . . . . . . . . . . . . . . . . . . Disarmed . | . . . . . . . . . . . . . . . . . . . . . . . . . . . . . . . . . Reprogrammed 2 | . . . 2 . . . . . . . . . . . . . . . . . . . . . . . . . . . . . Reused . | . . . . . . . . . . . . . . . . . . . . . . . . . . . . . . . . . Traps Extracted . | . . . . . . . . . . . . . . . . . . . . . . . . . . . . . . . . . Installed . | . . . . . . . . . . . . . . . . . . . . . . . . . . . . . . . . . Triggered . | . . . . . . . . . . . . . . . . . . . . . . . . . . . . . . . . . Machines | -11 -10 -10 -9 -9 -9 -8 -8 -8 -8 -8 -7 -7 -7 -7 -7 -7 -6 -6 -6 -6 -6 -6 -6 -5 -5 -5 -5 -5 -5 -4 -4 -4 ---------- Run | Yrd Mat Min Mat Min Exi Min Mat Gar Mat Gar Fac Was Fac Gar Fac DSF Fac Gar Fac Gar Fac DSF Gar Fac Was Fac Upp Upp Zhi Pro Fac Was Machines Disabled 73 | . 2 1 . . . . 1 10 2 10 . . . 7 . . . 9 . 11 . 1 6 . . 3 1 1 . 2 6 . Max in Single Turn 2 | . 1 1 . . . . 1 1 1 2 . . . 1 . . . 1 . 1 . . 1 . . 1 1 1 . 1 2 . Garrison Relay 30 | . . . . . . . . 4 . 8 . . . 4 . . . 4 . 6 . . 4 . . . . . . . . . Phase Generator 4 | . . . . . . . . 1 . . . . . . . . . 1 . 1 . . 1 . . . . . . . . . Machines Repaired . | . . . . . . . . . . . . . . . . . . . . . . . . . . . . . . . . . Machines Dismantled 8 | . . . . . . . . 3 . . . . . 1 . . . 2 . 1 . . 1 . . . . . . . . . Machines Sabotaged . | . . . . . . . . . . . . . . . . . . . . . . . . . . . . . . . . . Overloaded Fab Kills . | . . . . . . . . . . . . . . . . . . . . . . . . . . . . . . . . . Hacking | -11 -10 -10 -9 -9 -9 -8 -8 -8 -8 -8 -7 -7 -7 -7 -7 -7 -6 -6 -6 -6 -6 -6 -6 -5 -5 -5 -5 -5 -5 -4 -4 -4 --------- Run | Yrd Mat Min Mat Min Exi Min Mat Gar Mat Gar Fac Was Fac Gar Fac DSF Fac Gar Fac Gar Fac DSF Gar Fac Was Fac Upp Upp Zhi Pro Fac Was Machines Accessed 104 | . 7 . 16 . 1 . 14 4 16 3 . . 2 3 1 . 3 4 2 3 2 . 4 1 . 7 1 . 4 . 6 . Terminals 70 | . 6 . 12 . . . 10 4 11 3 . . 1 3 1 . 1 4 . 3 2 . 4 . . 4 . . . . 1 . Fabricators 5 | . . . . . . . . . . . . . . . . . . . . . . . . . . 3 . . . . 2 . Repair Stations 9 | . 1 . 2 . . . 1 . 2 . . . . . . . . . . . . . . 1 . . . . . . 2 . Recycling Units . | . . . . . . . . . . . . . . . . . . . . . . . . . . . . . . . . . Scanalyzers 9 | . . . 2 . . . 2 . 2 . . . . . . . 1 . 1 . . . . . . . . . . . 1 . Garrison Access 5 | . . . . . . . 1 . 1 . . . 1 . . . 1 . 1 . . . . . . . . . . . . . Total Hacks 288 | . 23 . 67 . 1 . 50 6 38 6 . . 4 4 3 . 7 10 3 4 3 . 8 1 . 15 1 . 17 . 17 . Successful 149 | . 11 . 36 . 1 . 31 3 15 2 . . 1 1 1 . 3 1 3 1 1 . 4 1 . 5 1 . 17 . 10 . Failed 138 | . 11 . 31 . . . 19 3 23 4 . . 3 3 2 . 4 9 . 3 2 . 4 . . 10 . . . . 7 . Catastrophic 40 | . 2 . 11 . . . 5 . 9 1 . . 1 1 . . 1 3 . 2 1 . . . . 2 . . . . 1 . Database Lockouts 1 | . 1 . . . . . . . . . . . . . . . . . . . . . . . . . . . . . . . Manual 115 | . 20 . 38 . . . 25 2 16 1 . . . . . . . . . 1 . . 2 1 . 5 . . . 1 3 . Terminals 183 | . 21 . 47 . . . 36 6 22 6 . . 2 4 3 . 1 10 . 4 3 . 8 . . 8 . . . . 2 . Fabricators 13 | . . . . . . . . . . . . . . . . . . . . . . . . . . 7 . . . . 6 . Repair Stations 25 | . 2 . 14 . . . 4 . 2 . . . . . . . . . . . . . . 1 . . . . . . 2 . Recycling Units . | . . . . . . . . . . . . . . . . . . . . . . . . . . . . . . . . . Scanalyzers 36 | . . . 6 . . . 8 . 10 . . . . . . . 3 . 2 . . . . . . . . . . . 7 . Garrison Access 12 | . . . . . . . 2 . 4 . . . 2 . . . 3 . 1 . . . . . . . . . . . . . Terminal Hacks 72 | . 3 . 13 . 1 . 15 3 7 1 . . . 1 1 . . 1 . 1 1 . 3 . . 3 1 . 17 . . . Record 6 | . . . . . 1 . . . . . . . . . . . . . . . . . . . . . . . 5 . . . Part Schematic 17 | . 1 . 5 . . . 6 . . . . . . . . . . . . . . . . . . 1 . . 4 . . . Robot Schematic 1 | . 1 . . . . . . . . . . . . . . . . . . . . . . . . . . . . . . . Robot Analysis 5 | . . . . . . . 1 . . . . . . . . . . . . . . . . . . . . . 4 . . . Prototype ID Bank 11 | . . . 3 . . . 3 . 1 . . . . . . . . . . . . . . . . . . . 4 . . . Open Door 2 | . . . . . . . . . . . . . . . . . . . . 1 . . . . . . 1 . . . . . Open DSF 2 | . . . . . . . . . . . . . . . 1 . . . . . 1 . . . . . . . . . . . Branch Access Points 2 | . . . 1 . . . . . . . . . . . . . . . . . . . . . . 1 . . . . . . Emergency Access Points 5 | . . . . . . . . 1 . . . . . 1 . . . 1 . . . . 1 . . 1 . . . . . . Terminal Index 1 | . . . . . . . 1 . . . . . . . . . . . . . . . . . . . . . . . . . Alert Level 3 | . . . 1 . . . 1 . 1 . . . . . . . . . . . . . . . . . . . . . . . Unreport Threat 5 | . . . 2 . . . 1 . 2 . . . . . . . . . . . . . . . . . . . . . . . Locate Traps 3 | . . . 1 . . . . . 2 . . . . . . . . . . . . . . . . . . . . . . . Hauler Manifests 3 | . 1 . . . . . 1 . 1 . . . . . . . . . . . . . . . . . . . . . . . Registered Components 1 | . . . . . . . 1 . . . . . . . . . . . . . . . . . . . . . . . . . Patrol Navigation 2 | . . . . . . . . 1 . . . . . . . . . . . . . . 1 . . . . . . . . . Security Stations 3 | . . . . . . . . 1 . 1 . . . . . . . . . . . . 1 . . . . . . . . . Fabricator Hacks 3 | . . . . . . . . . . . . . . . . . . . . . . . . . . 1 . . . . 2 . Load Schematic 3 | . . . . . . . . . . . . . . . . . . . . . . . . . . 1 . . . . 2 . Repair Station Hacks 13 | . 1 . 10 . . . 2 . . . . . . . . . . . . . . . . . . . . . . . . . Scan Component 7 | . 1 . 5 . . . 1 . . . . . . . . . . . . . . . . . . . . . . . . . Repair 6 | . . . 5 . . . 1 . . . . . . . . . . . . . . . . . . . . . . . . . Recycling Unit Hacks . | . . . . . . . . . . . . . . . . . . . . . . . . . . . . . . . . . Scanalyzer 27 | . . . 5 . . . 8 . 5 . . . . . . . 2 . 2 . . . . . . . . . . . 5 . Insert Component 13 | . . . 3 . . . 4 . 3 . . . . . . . 1 . 1 . . . . . . . . . . . 1 . Analyze 14 | . . . 2 . . . 4 . 2 . . . . . . . 1 . 1 . . . . . . . . . . . 4 . Garrison Access Hacks 5 | . . . . . . . 1 . 1 . . . 1 . . . 1 . 1 . . . . . . . . . . . . . Unlock Access 5 | . . . . . . . 1 . 1 . . . 1 . . . 1 . 1 . . . . . . . . . . . . . Unauthorized Hacks 29 | . 7 . 8 . . . 5 . 2 1 . . . . . . . . . . . . 1 1 . 1 . . . . 3 . Terminals 21 | . 7 . 7 . . . 5 . . 1 . . . . . . . . . . . . 1 . . . . . . . . . Assimilate 1 | . 1 . . . . . . . . . . . . . . . . . . . . . . . . . . . . . . . Operators 2 | . 1 . 1 . . . . . . . . . . . . . . . . . . . . . . . . . . . . . Skim 16 | . 5 . 6 . . . 5 . . . . . . . . . . . . . . . . . . . . . . . . . Override 2 | . . . . . . . . . . 1 . . . . . . . . . . . . 1 . . . . . . . . . Fabricators 2 | . . . . . . . . . . . . . . . . . . . . . . . . . . 1 . . . . 1 . Haulers 1 | . . . . . . . . . . . . . . . . . . . . . . . . . . 1 . . . . . . Recompile 1 | . . . . . . . . . . . . . . . . . . . . . . . . . . . . . . . 1 . Repair Stations 6 | . . . 1 . . . . . 2 . . . . . . . . . . . . . . 1 . . . . . . 2 . Patch 6 | . . . 1 . . . . . 2 . . . . . . . . . . . . . . 1 . . . . . . 2 . Recycling Units . | . . . . . . . . . . . . . . . . . . . . . . . . . . . . . . . . . Scanalyzers . | . . . . . . . . . . . . . . . . . . . . . . . . . . . . . . . . . Garrison Access . | . . . . . . . . . . . . . . . . . . . . . . . . . . . . . . . . . Data Cores Recovered 2 | . . . 1 . . . 1 . . . . . . . . . . . . . . . . . . . . . . . . . Used 2 | . . . 1 . . . 1 . . . . . . . . . . . . . . . . . . . . . . . . . Hacking Detections 86 | . 7 . 16 . . . 14 2 13 3 . . 2 3 1 . 3 4 1 2 1 . 3 . . 7 . . . . 4 . Full Trace Events 17 | . . . 2 . . . 1 1 1 2 . . 1 . 1 . 1 2 . 1 . . 1 . . 1 . . . . 2 . Feedback Events . | . . . . . . . . . . . . . . . . . . . . . . . . . . . . . . . . . Feedback Blocked . | . . . . . . . . . . . . . . . . . . . . . . . . . . . . . . . . . Robot Schematics Acquired 1 | . 1 . . . . . . . . . . . . . . . . . . . . . . . . . . . . . . . Robots Built . | . . . . . . . . . . . . . . . . . . . . . . . . . . . . . . . . . Authchips . | . . . . . . . . . . . . . . . . . . . . . . . . . . . . . . . . . Time . | . . . . . . . . . . . . . . . . . . . . . . . . . . . . . . . . . Total Robot Build Rating . | . . . . . . . . . . . . . . . . . . . . . . . . . . . . . . . . . Part Schematics Acquired 25 | . 1 . 6 . . . 9 . 2 . . . . . . . 1 . 1 . . . . . . 1 . . 4 . . . Parts Built . | . . . . . . . . . . . . . . . . . . . . . . . . . . . . . . . . . Authchips . | . . . . . . . . . . . . . . . . . . . . . . . . . . . . . . . . . Time . | . . . . . . . . . . . . . . . . . . . . . . . . . . . . . . . . . Total Part Build Rating . | . . . . . . . . . . . . . . . . . . . . . . . . . . . . . . . . . Parts Repaired 6 | . . . 5 . . . 1 . . . . . . . . . . . . . . . . . . . . . . . . . Time 180 | . . . 148 . . . 32 . . . . . . . . . . . . . . . . . . . . . . . . . Parts Recycled . | . . . . . . . . . . . . . . . . . . . . . . . . . . . . . . . . . Recycled Matter . | . . . . . . . . . . . . . . . . . . . . . . . . . . . . . . . . . Retrieved Matter . | . . . . . . . . . . . . . . . . . . . . . . . . . . . . . . . . . Retrieved Components . | . . . . . . . . . . . . . . . . . . . . . . . . . . . . . . . . . Parts Scanalyzed 12 | . . . 2 . . . 4 . 3 . . . . . . . 1 . 1 . . . . . . . . . . . 1 . Part Schematics Acquired 10 | . . . 2 . . . 4 . 2 . . . . . . . 1 . 1 . . . . . . . . . . . . . Parts Damaged 2 | . . . 1 . . . . . 1 . . . . . . . . . . . . . . . . . . . . . . . Bothacking | -11 -10 -10 -9 -9 -9 -8 -8 -8 -8 -8 -7 -7 -7 -7 -7 -7 -6 -6 -6 -6 -6 -6 -6 -5 -5 -5 -5 -5 -5 -4 -4 -4 ------------ Run | Yrd Mat Min Mat Min Exi Min Mat Gar Mat Gar Fac Was Fac Gar Fac DSF Fac Gar Fac Gar Fac DSF Gar Fac Was Fac Upp Upp Zhi Pro Fac Was Used RIF Installer . | . . . . . . . . . . . . . . . . . . . . . . . . . . . . . . . . . Robots Hacked 5 | . . . 1 . 4 . . . . . . . . . . . . . . . . . . . . . . . . . . . Non-combat 4 | . . . 1 . 3 . . . . . . . . . . . . . . . . . . . . . . . . . . . Combat 1 | . . . . . 1 . . . . . . . . . . . . . . . . . . . . . . . . . . . Robot Hacks Applied 8 | . . . 1 . 7 . . . . . . . . . . . . . . . . . . . . . . . . . . . parse_system 8 | . . . 1 . 7 . . . . . . . . . . . . . . . . . . . . . . . . . . . Relay Couplers Released 124 | . . . . . . . . 16 . 37 . . . 14 . . . 17 . 23 . . 17 . . . . . . . . . Machine Destruction 124 | . . . . . . . . 16 . 37 . . . 14 . . . 17 . 23 . . 17 . . . . . . . . . Fabnet Peak Effective % . | . . . . . . . . . . . . . . . . . . . . . . . . . . . . . . . . . Robots Rewired 31 | . . . . . . . . . . 3 . . . 3 . . . 4 . 7 . . 8 . . . 2 2 . 2 . . Allies Hacked 1 | . . . . . . . . . . . . . . . . . . . . . . . . . . . . 1 . . . . Hacks Repelled . | . . . . . . . . . . . . . . . . . . . . . . . . . . . . . . . . . Allies | -11 -10 -10 -9 -9 -9 -8 -8 -8 -8 -8 -7 -7 -7 -7 -7 -7 -6 -6 -6 -6 -6 -6 -6 -5 -5 -5 -5 -5 -5 -4 -4 -4 -------- Run | Yrd Mat Min Mat Min Exi Min Mat Gar Mat Gar Fac Was Fac Gar Fac DSF Fac Gar Fac Gar Fac DSF Gar Fac Was Fac Upp Upp Zhi Pro Fac Was Total Allies 62 | . . . . 3 . . . 3 . 5 . . . 4 . . . 6 . 7 . . 8 . 20 . 2 2 . 2 . . Largest Group 21 | . . . . 3 . . . 3 2 3 2 2 . 2 3 3 . 6 5 8 6 5 7 1 21 19 10 8 6 6 2 . Highest-Rated Group 772 | . . . . 40 . . . 219 180 194 28 28 . 48 72 72 . 388 347 490 393 274 236 29 772 672 367 303 224 241 98 . Highest-Rated Ally 149 | . . . . 16 . . . 149 149 149 18 18 . 39 24 24 . 119 119 119 119 110 110 29 50 46 49 49 49 49 49 . Initial Warlord ECA Mod 1245 | . . . . . . . . . 11 11 22 22 22 22 30 30 39 39 48 48 61 61 71 79 79 79 79 79 79 78 78 78 Total Orders 6 | . . . . . . . . . . . . . . . . . . . . 2 . . . . . . 2 2 . . . . STAY 1 | . . . . . . . . . . . . . . . . . . . . 1 . . . . . . . . . . . . FOLLOW 1 | . . . . . . . . . . . . . . . . . . . . 1 . . . . . . . . . . . . EXPLORE 1 | . . . . . . . . . . . . . . . . . . . . . . . . . . . 1 . . . . . RETURN 3 | . . . . . . . . . . . . . . . . . . . . . . . . . . . 1 2 . . . . Ally Attacks 659 | . . . . 4 . . . 13 41 36 1 2 . 9 . 23 . 1 3 81 1 17 113 . . 120 32 74 . 82 6 . Total Damage 16505 | . . . . 46 . . . 426 1093 1049 35 37 . 58 . 586 . 68 50 2832 17 847 2205 . . 2252 638 1653 . 2442 171 . Kills 135 | . . . . . . . . 8 15 17 1 . . 1 . 4 . 1 1 21 . 8 16 . . 14 6 8 . 14 . . Allies Corrupted 5 | . . . . . . . . . . . . . . . . . . . . . . . 1 . . 2 . 1 . 1 . . Allies Melted 1 | . . . . . . . . . . . . . . . . . . . . . . . . . . . 1 . . . . . Intel | -11 -10 -10 -9 -9 -9 -8 -8 -8 -8 -8 -7 -7 -7 -7 -7 -7 -6 -6 -6 -6 -6 -6 -6 -5 -5 -5 -5 -5 -5 -4 -4 -4 ------- Run | Yrd Mat Min Mat Min Exi Min Mat Gar Mat Gar Fac Was Fac Gar Fac DSF Fac Gar Fac Gar Fac DSF Gar Fac Was Fac Upp Upp Zhi Pro Fac Was Active Infowar (turns) 18508 | . . . . . . . . . . . . . . . . . . . 2 . . . 1468 79 5775 878 2834 3206 391 2574 1025 276 Optics 18506 | . . . . . . . . . . . . . . . . . . . . . . . 1468 79 5775 878 2834 3206 391 2574 1025 276 Sensors 1 | . . . . . . . . . . . . . . . . . . . . . . . . . . 1 . . . . . . Decoding 2 | . . . . . . . . . . . . . . . . . . . . . . . . . . . . 2 . . . . Cloaking 2 | . . . . . . . . . . . . . . . . . . . . . . . . . . . . 2 . . . . Jamming 2 | . . . . . . . . . . . . . . . . . . . . . . . . . . 2 . . . . . . ECM 2 | . . . . . . . . . . . . . . . . . . . 2 . . . . . . . . . . . . . Robot Analysis Total 5 | . . . . . . . 1 . . . . . . . . . . . . . . . . . . . . . 4 . . . Derelict Logs Recovered 7 | . . 2 . 1 . . . . . . . . . . . . . . . . . . . . . . 2 1 . 1 . . Drone Launches 5 | . . . . . . . . . . . . . . . . . . . . . . . . . . . 2 3 . . . . Drone Recoveries 4 | . . . . . . . . . . . . . . . . . . . . . . . . . . . 2 2 . . . . Exploration | -11 -10 -10 -9 -9 -9 -8 -8 -8 -8 -8 -7 -7 -7 -7 -7 -7 -6 -6 -6 -6 -6 -6 -6 -5 -5 -5 -5 -5 -5 -4 -4 -4 ------------- Run | Yrd Mat Min Mat Min Exi Min Mat Gar Mat Gar Fac Was Fac Gar Fac DSF Fac Gar Fac Gar Fac DSF Gar Fac Was Fac Upp Upp Zhi Pro Fac Was Turns Passed 40270 | 186 1960 701 3002 312 798 881 1383 1482 1700 1841 431 108 323 1939 15 221 337 1513 229 1660 325 274 1611 79 5775 878 2834 3206 391 2574 1025 276 Spaces Moved 21318 | 119 1146 606 1583 207 690 629 853 744 1141 1011 274 81 185 869 12 114 215 779 145 905 207 161 852 52 772 528 1885 2129 249 1515 511 149 Core 306 | 3 . . . . . . . . . . . . . . . . . . . . . . . . 303 . . . . . . . Treads . | . . . . . . . . . . . . . . . . . . . . . . . . . . . . . . . . . Legs . | . . . . . . . . . . . . . . . . . . . . . . . . . . . . . . . . . Wheels 21012 | 116 1146 606 1583 207 690 629 853 744 1141 1011 274 81 185 869 12 114 215 779 145 905 207 161 852 52 469 528 1885 2129 249 1515 511 149 Hover . | . . . . . . . . . . . . . . . . . . . . . . . . . . . . . . . . . Flight . | . . . . . . . . . . . . . . . . . . . . . . . . . . . . . . . . . Fastest Speed 50 | 50 80 110 110 125 110 125 120 120 120 120 135 135 120 120 135 135 130 130 130 130 135 135 135 150 135 135 135 135 120 150 145 115 Average Speed 152 | 79 105 110 122 125 110 125 127 120 120 133 135 135 131 133 135 135 133 135 138 134 135 135 135 150 738 141 140 140 120 150 152 134 Slowest Speed 1650 | 80 110 110 170 125 125 170 130 120 120 135 135 135 135 135 135 135 135 145 145 195 135 135 135 150 1650 150 150 150 150 150 225 160 Overloaded Moves . | . . . . . . . . . . . . . . . . . . . . . . . . . . . . . . . . . Propulsion Burnouts . | . . . . . . . . . . . . . . . . . . . . . . . . . . . . . . . . . Robots Hopped . | . . . . . . . . . . . . . . . . . . . . . . . . . . . . . . . . . Potential Cave-ins 6 | . . . . . . . . . . . . . . . . . . . . . . . . . . . . . . . . 6 Cave-ins Triggered 2 | . . . . . . . . . . . . . . . . . . . . . . . . . . . . . . . . 2 Exploration Rate (%) 61 | 4 99 97 96 21 67 96 73 88 91 87 8 71 7 91 1 95 4 93 6 96 6 91 98 3 95 18 99 99 63 99 13 62 Regions Visited 32 Branch Regions 8 Pre-discovered Areas 12 | . 2 1 2 . 1 . 2 . . . . . . . . . . . . . . . . . . . 1 . 3 . . . Known Exits Taken 11 | . . 1 1 . . 1 1 . 1 . . . 1 . 1 . 1 . 1 . 1 . . . . 1 . . . . . . Unknown Exits Taken 8 | 1 1 . . 1 1 . . . . . . . . . . . . . . . . . . . . . 1 1 1 1 . . Scrap Searched 13 | . . 1 . . . 1 . . . . . . . . . . . . . . . . . . . . 3 4 . 4 . . Spaces Dug 72 | . . . 1 . . . . 8 4 8 1 . 1 15 . 3 . 3 . 2 8 . . . . 2 . . . 1 2 13 Terrain Destroyed 241 | . . . 1 . . 1 . 8 4 9 2 . 1 16 . 3 . 12 . 5 8 . 14 . . 64 6 13 . 15 46 13 Melee 58 | . . . 1 . . . . 8 4 8 1 . 1 15 . 3 . 3 . 2 8 . . . . 2 . . . . 2 . Projectile 86 | . . . . . . 1 . . . 1 1 . . 1 . . . 7 . 3 . . 1 . . 13 5 7 . 10 23 13 AOE 62 | . . . . . . . . . . . . . . . . . . . . . . . . . . 44 . . . . 18 . Terrain Rammed . | . . . . . . . . . . . . . . . . . . . . . . . . . . . . . . . . . Walls Destroyed . | . . . . . . . . . . . . . . . . . . . . . . . . . . . . . . . . . Machines Disabled . | . . . . . . . . . . . . . . . . . . . . . . . . . . . . . . . . . Actions | -11 -10 -10 -9 -9 -9 -8 -8 -8 -8 -8 -7 -7 -7 -7 -7 -7 -6 -6 -6 -6 -6 -6 -6 -5 -5 -5 -5 -5 -5 -4 -4 -4 --------- Run | Yrd Mat Min Mat Min Exi Min Mat Gar Mat Gar Fac Was Fac Gar Fac DSF Fac Gar Fac Gar Fac DSF Gar Fac Was Fac Upp Upp Zhi Pro Fac Was Total 26361 | 160 1812 631 2388 229 725 673 1094 1035 1401 1291 303 80 223 1249 11 151 256 1063 157 1201 238 211 1085 54 835 601 2035 2274 331 1716 648 200 Wait 2003 | . 556 3 559 9 1 4 105 32 141 11 1 . 1 9 . . 10 18 1 10 17 9 13 . 41 6 113 93 28 156 43 13 Move 21293 | 118 1145 605 1582 206 689 628 853 743 1141 1010 274 80 185 868 11 113 214 778 144 904 207 160 851 52 771 527 1884 2128 248 1514 511 149 Hop . | . . . . . . . . . . . . . . . . . . . . . . . . . . . . . . . . . Pick Up 274 | 9 26 7 29 . 6 5 35 6 9 10 4 . 4 12 . 4 5 8 1 19 1 9 11 . 3 15 4 1 6 3 19 3 Fast Attach 58 | 6 2 . 11 . 5 1 1 1 1 5 . . . . . . 2 3 . 1 . 4 1 . . . . . 10 . 3 1 Attach 78 | 1 2 . 5 . 1 3 3 . 1 3 2 . 1 8 . 1 3 2 . 8 . . 2 2 . 4 . 1 1 1 13 10 Detach 6 | . . . 1 . . . 1 . . . . . . . . . 1 . . . . . . . . . . . 1 . . 2 Swap 467 | . 10 3 44 2 3 5 25 37 27 38 8 . 7 44 . 7 7 41 4 38 2 10 35 . 6 18 10 13 6 3 11 3 Drop 329 | . 17 7 36 . 12 5 38 9 17 14 2 . 7 17 . 3 8 27 1 25 2 14 14 . 1 10 4 2 23 2 11 1 Fire 1097 | 26 54 6 104 12 . 21 33 121 59 108 10 . 16 153 . 11 6 66 6 67 1 5 75 . 2 19 11 19 . 33 35 18 Melee 138 | . . . 2 . 8 . . 21 4 22 2 . 2 39 . 4 . 5 . 2 8 . 4 . 2 2 . . 8 1 2 . Ram 2 | . . . . . . 1 . . 1 . . . . . . . . . . . . . . . . . . . . . . . Kick . | . . . . . . . . . . . . . . . . . . . . . . . . . . . . . . . . . Crush . | . . . . . . . . . . . . . . . . . . . . . . . . . . . . . . . . . Escape Stasis 278 | . . . . . . . . 40 . 56 . . . 48 . 8 . 46 . 56 . . 24 . . . . . . . . . Rewire 249 | . . . . . . . . . . 10 . . . 43 . . . 52 . 62 . . 44 . 9 . 9 17 . 3 . . Trap 15 | . . . 15 . . . . . . . . . . . . . . . . . . . . . . . . . . . . . Miscellaneous 74 | . . . . . . . . 25 . 4 . . . 8 . . . 17 . 9 . . 11 . . . . . . . . . Route ------- -11/Scrapyard -10/Materials (discovered 6 exits: *Mat x3 / [*Min x2] / [*Sub]) -10/Mines (discovered 3 exits: *Mat x2 / [*Sub]) -9/Materials (discovered 5 exits: *Mat x3 / *Min x2) -9/Mines (discovered 3 exits: Mat x2 / *Exi) -9/Exiles -8/Mines (discovered 2 exits: *Mat x2) -8/Materials (discovered 6 exits: *Fac x3 / *Sto x2 / Gar) -8/Garrison (discovered 3 exits: *Mat x3) -8/Materials (discovered 5 exits: *Fac x3 / *Sto / Gar) -8/Garrison (discovered 3 exits: *Fac x3) -7/Factory (discovered 3 exits: *Fac x2 / Low) -7/Waste -7/Factory -7/Garrison (discovered 4 exits: *Fac x4) -7/Factory -7/DSF -6/Factory -6/Garrison (discovered 3 exits: *Fac x3) -6/Factory -6/Garrison (discovered 3 exits: *Fac x3) -6/Factory -6/DSF -6/Garrison (discovered 3 exits: *Fac x3) -5/Factory -5/Waste -5/Factory (discovered 4 exits: *Upp x2 / Ext x2) -5/Upper Caves -5/Upper Caves (discovered 2 exits: *Fac / *Zhi) -5/Zhirov -4/Proximity Caves -4/Factory -4/Waste History --------- Turn | Location | Event 7 | -11/Scrapyard | Discovered new exit (range 15) 187 | -11/Scrapyard | Entered Materials 233 | -10/Materials | Discovered new exit (range 15) 290 | -10/Materials | Discovered new exit (range 6) 296 | -10/Materials | Discovered new exit (range 14) 314 | -10/Materials | Build established: Mutant 606 | -10/Materials | Core integrity fell below 50% 684 | -10/Materials | Discovered new exit (range 16) 887 | -10/Materials | Derelicts attacked the area 1120 | -10/Materials | Discovered new exit (range 8) 1286 | -10/Materials | Discovered new exit (range 13) 1327 | -10/Materials | Build established: Scavenger-Mutant 1377 | -10/Materials | Learned location of 2 exits from Subcaves 1451 | -10/Materials | Central database locked down 1504 | -10/Materials | Learned location of Subcaves (-10) 1623 | -10/Materials | Learned Storage emergency access door positions 2147 | -10/Materials | Entered Mines 2148 | -10/Mines | Identified exit to Materials 2183 | -10/Mines | Learned 4 Materials zone layouts 2261 | -10/Mines | Received a Rocket Launcher from a helpful Derelict 2456 | -10/Mines | A weapon hastily lodged in a ceiling crevice suddenly fell to the ground 2476 | -10/Mines | Found a damaged Exp. Sensor Array with a note attached 2479 | -10/Mines | Found Prototype Device 2691 | -10/Mines | Learned location of Mines (-9) 2839 | -10/Mines | Discovered new exit (range 5) 2848 | -10/Mines | Entered Materials 2848 | -9/Materials | Evolved 2 slots: Weapon x2 2849 | -9/Materials | Identified exit to Materials 2849 | -9/Materials | Identified exit to Mines 3146 | -9/Materials | Build established: Scavenger-Tank 3372 | -9/Materials | Repaired Hvy. Assault Rifle 3399 | -9/Materials | Repaired Lgt. Armor Plating 3427 | -9/Materials | Repaired Ion Engine 3460 | -9/Materials | Repaired Hvy. Assault Rifle 3767 | -9/Materials | Identified Exp. Sensor Array 4280 | -9/Materials | Learned location of 2 exits from Materials 4335 | -9/Materials | Loaded intel: 18 interactive machine locations 4381 | -9/Materials | Learned location of 1 exit from Storage 4443 | -9/Materials | Learned location of 1 exit from Storage 4459 | -9/Materials | Learned location of Zion (-7) 4498 | -9/Materials | Learned Materials emergency access door positions 4528 | -9/Materials | Learned location of 3 exits from Materials 4569 | -9/Materials | Learned 2 Storage zone layouts 5581 | -9/Materials | Repaired Hvy. Assault Rifle 5850 | -9/Materials | Entered Mines 5889 | -9/Mines | Assisted by bots powering up and referring to "LRC-V3" 5993 | -9/Mines | Assembled infested the area 5994 | -9/Mines | Learned Materials emergency access door positions 6073 | -9/Mines | Lost 3 allies 6143 | -9/Mines | Deemed a non-threat by the Exiles lab entrance 6157 | -9/Mines | Discovered new exit (range 5) 6162 | -9/Mines | Entered Exiles 6198 | -9/Exiles | Met 8R-AWN 6215 | -9/Exiles | Met EX-HEX 6278 | -9/Exiles | Met EX-DEC 6335 | -9/Exiles | Met EX-BIN 6440 | -9/Exiles | Discovered new exit (range 10) 6475 | -9/Exiles | Build established: Mutant 6960 | -9/Exiles | Entered Mines 7236 | -8/Mines | Build established: Scavenger-Tank 7311 | -8/Mines | Discovered exit to Materials (range 10) 7626 | -8/Mines | Discovered exit to Materials (range 14) 7841 | -8/Mines | Entered Materials 7841 | -8/Materials | Evolved 2 slots: Utility x1, Weapon x1 7842 | -8/Materials | Identified exit to Factory 7842 | -8/Materials | Identified exit to Storage 8508 | -8/Materials | Build established: Tank 8764 | -8/Materials | Learned 4 Factory zone layouts 8839 | -8/Materials | Learned Factory recycling unit intel 8872 | -8/Materials | Met 7R-MNS 8945 | -8/Materials | Repaired Hvy. Assault Rifle 9002 | -8/Materials | Learned location of 1 exit from Recycling 9055 | -8/Materials | Learned location of Extension (-5) 9117 | -8/Materials | Learned location of 2 exits from Factory 9153 | -8/Materials | Garrison activated, responded to threat 9223 | -8/Materials | Identified exit to Garrison 9224 | -8/Materials | Entered Garrison 9290 | -8/Garrison | Triggered checkpoint 9473 | -8/Garrison | Garrison Relay disabled 9552 | -8/Garrison | Triggered checkpoint 9589 | -8/Garrison | Triggered checkpoint 9670 | -8/Garrison | Destroyed 9 combat bots 9729 | -8/Garrison | Discovered new exit (range 12) 9790 | -8/Garrison | Triggered checkpoint 9824 | -8/Garrison | Garrison Relay disabled 9892 | -8/Garrison | Rescued HV-R5K 10080 | -8/Garrison | Triggered checkpoint 10120 | -8/Garrison | Triggered checkpoint 10163 | -8/Garrison | Garrison Relay disabled 10225 | -8/Garrison | Discovered new exit (range 14) 10242 | -8/Garrison | Learned Materials security intel 10357 | -8/Garrison | Phase Generator disabled 10362 | -8/Garrison | Discovered new exit (range 12) 10404 | -8/Garrison | Triggered checkpoint 10474 | -8/Garrison | Rescued a captive Derelict 10474 | -8/Garrison | Rescued a captive Derelict 10587 | -8/Garrison | Garrison Relay disabled 10597 | -8/Garrison | P-60 Hacker assimilated allied P6-KD3(h) 10706 | -8/Garrison | Entered Materials 10706 | -8/Materials | Accompanied by 2 allies (HV-R5K) 11106 | -8/Materials | First assault squad dispatched 11147 | -8/Materials | Discovered exit to Factory (range 3) 11494 | -8/Materials | Discovered exit to Factory (range 11) 11772 | -8/Materials | Discovered exit to Factory (range 4) 11847 | -8/Materials | Discovered exit to Storage (range 10) 12406 | -8/Materials | Identified exit to Garrison 12406 | -8/Materials | Entered Garrison 12406 | -8/Garrison | Accompanied by 1 ally (HV-R5K) 12460 | -8/Garrison | Learned Factory security intel 12466 | -8/Garrison | Triggered checkpoint 12527 | -8/Garrison | Found Powered Armor 12530 | -8/Garrison | Found Powered Armor 12534 | -8/Garrison | Found Powered Armor 12538 | -8/Garrison | Destroyed 8 combat bots 12585 | -8/Garrison | Triggered checkpoint 12638 | -8/Garrison | Garrison Relay disabled 12652 | -8/Garrison | Garrison Relay disabled 12675 | -8/Garrison | Found Powered Armor 12829 | -8/Garrison | Rescued a captive Derelict 12833 | -8/Garrison | Rescued a captive Derelict 12884 | -8/Garrison | Triggered checkpoint 12940 | -8/Garrison | Triggered checkpoint 12960 | -8/Garrison | Garrison Relay disabled 13001 | -8/Garrison | Garrison Relay disabled 13003 | -8/Garrison | Garrison Relay disabled 13009 | -8/Garrison | Garrison Relay disabled 13211 | -8/Garrison | Garrison Relay disabled 13259 | -8/Garrison | Discovered exit to Factory (range 8) 13407 | -8/Garrison | Triggered checkpoint 13458 | -8/Garrison | Discovered exit to Factory (range 3) 13460 | -8/Garrison | Build established: Scavenger-Tank 13510 | -8/Garrison | Garrison Relay disabled 13563 | -8/Garrison | Triggered checkpoint 13696 | -8/Garrison | Triggered checkpoint 13748 | -8/Garrison | Triggered checkpoint 13863 | -8/Garrison | Discovered exit to Factory (range 7) 14247 | -8/Garrison | Entered Factory 14247 | -7/Factory | Accompanied by 2 allies 14247 | -7/Factory | Evolved 2 slots: Utility x1, Weapon x1 14248 | -7/Factory | Identified exit to Factory 14248 | -7/Factory | Identified exit to Lower Caves 14251 | -7/Factory | Loaded intel: 6 recycling unit locations 14355 | -7/Factory | Discovered exit to Factory (range 12) 14528 | -7/Factory | Build established: Scavenger-Executioner 14647 | -7/Factory | First assault squad dispatched 14678 | -7/Factory | Sucked down chute 14678 | -7/Factory | Entered Waste 14689 | -7/Waste | Spotted C-40 Crusher 14693 | -7/Waste | EMP discharged 14696 | -7/Waste | Spotted C-40 Crusher 14696 | -7/Waste | Spotted C-40 Crusher 14703 | -7/Waste | 2 allies followed down the chute 14733 | -7/Waste | Spotted C-40 Crusher 14738 | -7/Waste | Spotted C-40 Crusher 14770 | -7/Waste | Spotted C-40 Crusher 14773 | -7/Waste | Discovered new exit (range 11) 14786 | -7/Waste | Entered Factory 15059 | -7/Factory | Garrison activated, responded to threat 15109 | -7/Factory | Identified exit to Garrison 15109 | -7/Factory | Entered Garrison 15205 | -7/Garrison | Rescued a captive Derelict 15217 | -7/Garrison | Triggered checkpoint 15370 | -7/Garrison | Triggered checkpoint 15427 | -7/Garrison | Destroyed 10 combat bots 15449 | -7/Garrison | Triggered checkpoint 15514 | -7/Garrison | Destroyed 9 combat bots 15518 | -7/Garrison | Lost 5 parts (1n1u3w) 15862 | -7/Garrison | Discovered new exit (range 10) 15875 | -7/Garrison | Triggered checkpoint 15912 | -7/Garrison | Garrison Relay disabled 16130 | -7/Garrison | Discovered new exit (range 12) 16177 | -7/Garrison | Triggered checkpoint 16313 | -7/Garrison | Garrison Relay disabled 16681 | -7/Garrison | Triggered checkpoint 16847 | -7/Garrison | Discovered new exit (range 10) 16857 | -7/Garrison | Triggered checkpoint 16887 | -7/Garrison | Garrison Relay disabled 16931 | -7/Garrison | Triggered checkpoint 16970 | -7/Garrison | Discovered new exit (range 5) 17048 | -7/Garrison | Entered Factory 17048 | -7/Factory | Accompanied by 3 allies 17063 | -7/Factory | Identified exit to DSF 17063 | -7/Factory | Entered DSF 17063 | -7/DSF | Accompanied by 3 allies 17102 | -7/DSF | Additional patrols routed to DSF 17173 | -7/DSF | Lost 3 allies 17202 | -7/DSF | Sterilization system engaged 17222 | -7/DSF | Ambient heat levels rising (+10) 17227 | -7/DSF | Discovered exit to Factory (range 14) 17237 | -7/DSF | Ambient heat levels rising (+10) 17252 | -7/DSF | Ambient heat levels rising (+10) 17267 | -7/DSF | Ambient heat levels rising (+10) 17282 | -7/DSF | Ambient heat levels rising (+10) 17284 | -7/DSF | Entered Factory 17284 | -6/Factory | Evolved 2 slots: Utility x1, Weapon x1 17618 | -6/Factory | Identified exit to Garrison 17621 | -6/Factory | Entered Garrison 17631 | -6/Garrison | Triggered checkpoint 17649 | -6/Garrison | Triggered checkpoint 17700 | -6/Garrison | Garrison Relay disabled 17829 | -6/Garrison | Triggered checkpoint 17829 | -6/Garrison | Destroyed 7 combat bots 17926 | -6/Garrison | Triggered checkpoint 17960 | -6/Garrison | Triggered checkpoint 18019 | -6/Garrison | Triggered checkpoint 18178 | -6/Garrison | Phase Generator disabled 18269 | -6/Garrison | Triggered checkpoint 18305 | -6/Garrison | Garrison Relay disabled 18358 | -6/Garrison | Discovered new exit (range 10) 18519 | -6/Garrison | Discovered new exit (range 12) 18562 | -6/Garrison | Rescued a captive Derelict 18563 | -6/Garrison | Rescued a captive Derelict 18586 | -6/Garrison | Garrison Relay disabled 18991 | -6/Garrison | Rewired Executioner 18995 | -6/Garrison | Rewired Executioner 19028 | -6/Garrison | Discovered new exit (range 11) 19031 | -6/Garrison | Triggered checkpoint 19058 | -6/Garrison | Garrison Relay disabled 19134 | -6/Garrison | Entered Factory 19134 | -6/Factory | Accompanied by 5 allies 19345 | -6/Factory | Identified exit to Garrison 19363 | -6/Factory | Entered Garrison 19363 | -6/Garrison | Accompanied by 5 allies 19604 | -6/Garrison | Phase Generator disabled 19632 | -6/Garrison | Triggered checkpoint 19857 | -6/Garrison | Garrison Relay disabled 19969 | -6/Garrison | Triggered checkpoint 19990 | -6/Garrison | Triggered checkpoint 20019 | -6/Garrison | Triggered checkpoint 20031 | -6/Garrison | Triggered checkpoint 20152 | -6/Garrison | Triggered checkpoint 20162 | -6/Garrison | Discovered new exit (range 11) 20208 | -6/Garrison | Triggered checkpoint 20210 | -6/Garrison | Garrison Relay disabled 20337 | -6/Garrison | Triggered checkpoint 20372 | -6/Garrison | Garrison Relay disabled 20534 | -6/Garrison | Garrison Relay disabled 20543 | -6/Garrison | Triggered checkpoint 20582 | -6/Garrison | Garrison Relay disabled 20629 | -6/Garrison | Discovered new exit (range 9) 20775 | -6/Garrison | Garrison Relay disabled 20782 | -6/Garrison | Triggered checkpoint 20809 | -6/Garrison | Discovered new exit (range 11) 20849 | -6/Garrison | Spotted Striker 20849 | -6/Garrison | Spotted Striker 20909 | -6/Garrison | Destroyed Striker 21023 | -6/Garrison | Entered Factory 21023 | -6/Factory | Accompanied by 6 allies 21274 | -6/Factory | Build established: Commander-Executioner 21333 | -6/Factory | Identified exit to DSF 21348 | -6/Factory | Entered DSF 21348 | -6/DSF | Accompanied by 5 allies 21391 | -6/DSF | Additional patrols routed to DSF 21513 | -6/DSF | Sterilization system engaged 21533 | -6/DSF | Ambient heat levels rising (+10) 21533 | -6/DSF | Discovered new exit (range 16) 21548 | -6/DSF | Ambient heat levels rising (+10) 21563 | -6/DSF | Ambient heat levels rising (+10) 21578 | -6/DSF | Ambient heat levels rising (+10) 21593 | -6/DSF | Ambient heat levels rising (+10) 21608 | -6/DSF | Ambient heat levels rising (+10) 21622 | -6/DSF | Entered Garrison 21622 | -6/Garrison | Accompanied by 3 allies 21750 | -6/Garrison | Destroyed 9 combat bots 21760 | -6/Garrison | Lost 3 allies 21825 | -6/Garrison | Phase Generator disabled 21870 | -6/Garrison | Triggered checkpoint 21906 | -6/Garrison | Build established: Executioner 21912 | -6/Garrison | Garrison Relay disabled 22230 | -6/Garrison | Triggered checkpoint 22230 | -6/Garrison | Triggered checkpoint 22257 | -6/Garrison | Destroyed 7 combat bots 22267 | -6/Garrison | Triggered checkpoint 22304 | -6/Garrison | Triggered checkpoint 22348 | -6/Garrison | Identified exit to Factory 22451 | -6/Garrison | Triggered checkpoint 22459 | -6/Garrison | Garrison Relay disabled 22609 | -6/Garrison | Build established: Scavenger-Executioner 22686 | -6/Garrison | Triggered checkpoint 22734 | -6/Garrison | Learned Factory security intel 22740 | -6/Garrison | Garrison Relay disabled 23052 | -6/Garrison | Triggered checkpoint 23075 | -6/Garrison | Lost 3 allies 23131 | -6/Garrison | Garrison Relay disabled 23233 | -6/Garrison | Entered Factory 23233 | -5/Factory | Accompanied by 1 ally 23233 | -5/Factory | Evolved 2 slots: Utility x1, Weapon x1 23312 | -5/Factory | Sucked down chute 23312 | -5/Factory | Entered Waste 23313 | -5/Waste | Joined by Warlord forces that had cleared the area 23327 | -5/Waste | 3 allies followed down the chute 23535 | -5/Waste | Found Prototype Device 23535 | -5/Waste | Identified Exp. Actuator Array 23868 | -5/Waste | Discovered new exit (range 12) 29087 | -5/Waste | Entered Factory 29087 | -5/Factory | Accompanied by 19 allies 29111 | -5/Factory | Identified exit to Upper Caves 29111 | -5/Factory | Identified exit to Extension 29494 | -5/Factory | Found Prototype Device 29502 | -5/Factory | Lost 4 parts (1n3w) 29965 | -5/Factory | Entered Upper Caves 29965 | -5/Upper Caves | Accompanied by 10 allies 29971 | -5/Upper Caves | Met a Warlord Commander 29972 | -5/Upper Caves | Learned location of Warlord (-4) 29973 | -5/Upper Caves | Warlord Commander delivered Encrypted Comm Array 29979 | -5/Upper Caves | Found Unknown Device 29980 | -5/Upper Caves | Identified Encrypted Comm Array 30260 | -5/Upper Caves | Attracted the attention of an 0b10 outpost 30303 | -5/Upper Caves | Lost 3 allies 30356 | -5/Upper Caves | Spotted B-75 Beast 30405 | -5/Upper Caves | Destroyed B-75 Beast 30583 | -5/Upper Caves | Learned Factory security intel 30883 | -5/Upper Caves | Discovered new exit (range 13) 32799 | -5/Upper Caves | Entered another Upper Caves area 32799 | -5/Upper Caves | Accompanied by 7 allies 32837 | -5/Upper Caves | Entered a destroyed Warlord outpost 32892 | -5/Upper Caves | Found DCF Scrap (14 items) 33075 | -5/Upper Caves | Discovered new exit (range 5) 33527 | -5/Upper Caves | Attracted the attention of an 0b10 outpost 34288 | -5/Upper Caves | Discovered new exit (range 18) 34488 | -5/Upper Caves | Encountered a Warlord checkpoint 36005 | -5/Upper Caves | Entered Zhirov 36005 | -5/Zhirov | Accompanied by 6 allies 36005 | -5/Zhirov | Discovered new exit (range 3) 36035 | -5/Zhirov | Met Zhirov 36114 | -5/Zhirov | Learned location of Quarantine (-3) 36114 | -5/Zhirov | Learned location of Testing (-2) 36114 | -5/Zhirov | Learned location of Command (-1) 36126 | -5/Zhirov | Zhirov requested help retrieving the SGEMP Prototype 36145 | -5/Zhirov | Found Alien Artifact 36145 | -5/Zhirov | Identified Integrated Reactor 36145 | -5/Zhirov | Installed Integrated Reactor, increased core energy generation (+10) 36165 | -5/Zhirov | Found Alien Artifact 36311 | -5/Zhirov | Build established: Scavenger-Mutant 36396 | -5/Zhirov | Entered Proximity Caves 36396 | -4/Proximity Caves | Accompanied by 6 allies 36398 | -4/Proximity Caves | Spotter reported a threat 36399 | -4/Proximity Caves | Spotter reported a threat 36436 | -4/Proximity Caves | Spotted B-86 Titan 36535 | -4/Proximity Caves | Destroyed B-86 Titan 36676 | -4/Proximity Caves | Build established: Scavenger-Executioner 36894 | -4/Proximity Caves | Received a Behemoth hack from an annoying Tinkerer 36956 | -4/Proximity Caves | Attracted the attention of an 0b10 outpost 37222 | -4/Proximity Caves | Learned location of 1 exit from Upper Caves 37795 | -4/Proximity Caves | Acquired the password to a Derelict Tinkerer's latest research 38509 | -4/Proximity Caves | Discovered new exit (range 21) 38970 | -4/Proximity Caves | Entered Factory 38970 | -4/Factory | Accompanied by 2 allies 38970 | -4/Factory | Evolved 2 slots: Utility x2 39077 | -4/Factory | Garrison activated, responded to threat 39586 | -4/Factory | Destroyed 7 combat bots 39587 | -4/Factory | Lost 6 parts (1n5w) 39970 | -4/Factory | First assault squad dispatched 39995 | -4/Factory | Sucked down chute 39995 | -4/Factory | Entered Waste 40007 | -4/Waste | Spotted C-40 Crusher 40008 | -4/Waste | Spotted C-40 Crusher 40024 | -4/Waste | Lost 5 parts (2n3w) 40059 | -4/Waste | Spotted C-40 Crusher 40093 | -4/Waste | Spotted C-40 Crusher 40096 | -4/Waste | Spotted C-40 Crusher 40105 | -4/Waste | Spotted C-40 Crusher 40115 | -4/Waste | Crushed by Compactor (1 part destroyed, 2 dropped) 40184 | -4/Waste | Crushed by falling debris 40189 | -4/Waste | Crushed by falling debris 40189 | -4/Waste | System corruption reached 10% 40220 | -4/Waste | Lost 5 parts (1n1u3w) 40262 | -4/Waste | Crushed by Compactor (1 part destroyed, 1 dropped) 40263 | -4/Waste | Destroyed C-40 Crusher 40266 | -4/Waste | Crushed by Compactor (1 part destroyed, 2 dropped) 40269 | -4/Waste | Crushed by Compactor (1 part destroyed, 2 dropped) 40271 | -4/Waste | Self-destructed Last Messages --------------- 40258_ System corrupted: Matter fused (-5). 40259_ Slug penetrates C-40 Crusher. 40262_ Lgt. Quantum Reactor crushed. 40262_ Hvy. Antimatter Reactor crushed. 40262_ KE Penetrator crushed. 40263_ C-40 Crusher destroyed. 40263_ Slug penetrates C-40 Crusher. 40263_ 4 Matter crushed. 40263_ Antimatter Reactor crushed. 40265_ 219 Matter crushed. 40266_ Slug penetrates C-40 Crusher. 40266_ Hvy. Treads crushed. 40266_ Imp. Kinecellerator crushed. 40266_ Hardcell Cannon crushed. 40266_ Coil Gun crushed. 40269_ Slug penetrates C-40 Crusher. 40269_ Coil Gun crushed. 40269_ Hcp. Storage Unit crushed. 40269_ KE Penetrator crushed. 40269_ Core Analyzer crushed. Map ----- +----------------------------------------------------+ | #??????# ?????????????????????? | | #??????# ??????????????????????? | | #??????# ???????????????????????? | | #??????# ????????????????????????? | | ######## #??????# #????????????????????????? | | #??????# #??????# #????????????????????????? | | #??????# #??????# #?????????? #????????????? | | #??????# #??????# #???????? #????????????? | | ######## ######## ######## #### ????????? | | ???????? | | ???????? | | ???????? | | ???????? | | ######## ######## ########?????????????????? | | #??????# #??????# #????????????????????????? | | #??????# #??????# #????????????????????????? | | #??????# #??????# #????????????????????????? | | ###????# #????### ###??????????????????????? | | #????####"#????# #??????????????????????? | | #?????## ##????# #??????????????????????? | | #????## ##?????# %#??????????????????????? | | #???## ##??????# #??????????????????????? | | #??## ##???????# % !#??????????????????????? | | ##### #????????# *CC#??????????????????????? | | ## ####????????# [!CC#??????????????????????? | | "# #??????????# !!]@#??????????????????????? | | #######??????????##########??????????????????????? | | ?????????????????????????????????????????????????? | | ?????????????????????????????????????????????????? | | ?????????????????????????????????????????????????? | | ?????????????????????????????????????????????????? | | ?????????????????????????????????????????????????? | | ?????????????????????????????????????????????????? | | ?????????????????????????????????????????????????? | | ?????????????????????????????????????????????????? | | ?????????????????????????????????????????????????? | | ?????????????????????????????????????????????????? | | ?????????????????????????????????????????????????? | | ?????????????????????????????????????????????????? | | ?????????????????????????????????????????????????? | | ?????????????????????????????????????????????????? | | ?????????????????????????????????????????????????? | | ?????????????????????????????????????????????????? | | ?????????????????????????????????????????????????? | | ?????????????????????????????????????????????????? | | ?????????????????????????????????????????????????? | | ?????????????????????????????????????????????????? | | ?????????????????????????????????????????????????? | | ?????????????????????????????????????????????????? | | ?????????????????????????????????????????????????? | +----------------------------------------------------+ Best States ------------- Heat Dissipation 69 Coolant Potential 65 Energy Generation 35 Energy Capacity 340 Matter Stores 300 Matter Capacity 300 Sight Range 23 Terrain Scan Density 10 ECM Strength 1 Cloak Strength 3 Armor Coverage 400 Core Shielding 20 Utility Shielding 90 Point Defense Rating 160 Evasion (%) 44 Targeting Accuracy 8 Core Analysis 9 Recoil Reduction 6 Matter Filtering 30 Kinecelleration 40 Salvage Targeting 2 Offensive Hacking 14 Authchip Count 2 Item Schematics ----------------- Wheel | -10/Materials | Hacked Exp. Sensor Array | -9/Materials | Scanalyzed Arm. Wheel | -9/Materials | Scanalyzed Autogun | -9/Materials | Hacked Heat Sink | -9/Materials | Hacked Utility Shielding | -9/Materials | Hacked Assault Rifle | -9/Materials | Hacked Recoil Stabilizer | -8/Materials | Hacked Rnf. Deuterium Engine | -8/Materials | Scanalyzed Enh. Autogun | -8/Materials | Scanalyzed Ion Engine | -8/Materials | Hacked Targeting Computer | -8/Materials | Hacked Hcp. Storage Unit | -8/Materials | Hacked Coolant Injector | -8/Materials | Scanalyzed Minigun | -8/Materials | Scanalyzed Huge Storage Unit | -8/Materials | Hacked Recalibrator | -8/Materials | Scanalyzed Hvy. Assault Rifle | -8/Materials | Scanalyzed Coil Gun | -6/Factory | Scanalyzed KE Penetrator | -6/Factory | Scanalyzed Centrium Wheel | -5/Factory | Hacked Assault Drone Bay | -5/Zhirov | Free Exp. Heat Sink | -5/Zhirov | Free Exp. Optical Array | -5/Zhirov | Free Imp. Arc Thrower | -5/Zhirov | Free Robot Schematics ------------------ M-13 Machinist | -10/Materials | Hacked Fabricated ------------ Nothing Repaired ---------- Hvy. Assault Rifle | 58% | -9/Materials Lgt. Armor Plating | 23% | -9/Materials Ion Engine | 35% | -9/Materials Hvy. Assault Rifle | 65% | -9/Materials Hvy. Assault Rifle | 15% | -9/Materials Hvy. Assault Rifle | 43% | -8/Materials Alien Tech Used ----------------- Integrated Reactor Achievements -------------- None Challenges ------------ None Game ------ Seed OmegaAccelerationChip Manual? 0 Play Time 04:33:49 Cumulative 1081.4 hours Start 2025.07.18 @ 22:01:32 End 2025.07.19 @ 19:45:22 Sessions 7 Manual Loads 0 Difficulty Rogue Special Mode None Game No. 536 Rogue 536 Adventurer 0 Explorer 0 Win Type - Total 23 Types 10/4/3/0/1/1/2/2/0/0 Lore% 89 Gallery% 89 Achievement% 83 Wizard Run 0 Options --------- Layout 0 ASCII 0 Keyboard 0 Movement Numpad Keybinds 0 Fullscreen 2 Font 24/Smallcaps Map View 76x50 Zoom Use 0% Tactical HUD 1 Map Filters NONE Filters SHIFT_HUE(315) Steam 1 RUN: 6c1720f5-1797-4049-9919-09d68dd223cf